{"text_format":"1","workbook":"xlsx","n_sheets":8,"sheets":["Hoja1","Hoja2","Hoja3","Hoja4","Hoja5","Hoja6","RESUMEN","BASE DE DATOS"],"not_rendered":{"charts":0,"images":0,"macros":0,"external_links":0,"defined_names":6,"comments":0,"pivot_tables":0},"unopened":[],"bounds":{"document_bytes":16777216,"sheet_cells":100000,"rows_first":2000,"rows_last":500,"rows_between":2000,"halvings":0,"cell_chars":16384,"cell_head_chars":4096},"cells_cut":0,"cells_raw":0,"read":"whole","date_system":"1900"}

{"sheet":"Hoja1","index":0,"n_rows":44,"n_cols":5,"rows_kept":44,"cut":false,"hidden":false,"merged":[]}
[]
[]
["LBRO","HOJA","Nº","2016/17","2017/18"]
["LBRO","HOJA","Nº","2016/17","2017/18"]
[]
["LIBRO 1","HOJA 1",2,12,4]
["LIBRO 2","HOJA 1",3,12,4]
["LIBRO 3","HOJA 2",3,7,9]
["LIBRO 3","HOJA 3",3,7,7]
["LIBRO 4","HOJA 4",3,12,10]
["LIBRO 4","HOJA 5",3,13,6]
["LIBRO 4","HOJA 6",3,12,7]
["LIBRO 4","HOJA 7",3,11,6]
["LIBRO 4","HOJA 8",3,13,8]
["LIBRO 4","HOJA 9",3,11,6]
["LIBRO 4","HOJA 10",3,12,9]
["LIBRO 4","HOJA 11",3,12,8]
["LIBRO 5","HOJA 5",7,7,3]
["LIBRO 5","HOJA 6",7,10,3]
["LIBRO 5","HOJA 7",8,10,3]
["LIBRO 5","HOJA 8",7,10,1]
["LIBRO 5","HOJA 9",8,10,1]
["LIBRO 6","HOJA 1",2,8,4]
["LIBRO 6","HOJA 2",3,7,6]
["LIBRO 6","HOJA 3",2,10,4]
["LIBRO 6","HOJA 4",3,10,4]
["LIBRO 7","HOJA 1",5,5,5]
["LIBRO 7","HOJA 2",5,12,5]
["LIBRO 7","HOJA 3",5,8,3]
["LIBRO 7","HOJA 4",5,8,4]
["LIBRO 7","HOJA 5",5,12,5]
["LIBRO 7","HOJA 6",5,7,7]
["LIBRO 7","HOJA 7",5,12,6]
["LIBRO 7","HOJA 8",5,8,8]
["LIBRO 7","HOJA 9",5,8,3]
["LIBRO 7","HOJA 10",5,9,6]
["LIBRO 7","HOJA 11",5,6,10]
["LIBRO 7","HOJA 12",5,10,2]
["LIBRO 7","HOJA 13",5,13,2]
["LIBRO 8","HOJA 1",5,10,2]
["LIBRO 8","HOJA 2",5,8,5]
["LIBRO 8","HOJA 3",5,7,5]
["LIBRO 8","HOJA 4",5,8,4]
["LIBRO 8","HOJA 5",5,7,4]

{"sheet":"Hoja2","index":1,"n_rows":44,"n_cols":5,"rows_kept":44,"cut":false,"hidden":false,"merged":[]}
[]
[]
["LBRO","HOJA","Nº","2016/17","2017/18"]
["LBRO","HOJA","Nº","2016/17","2017/18"]
[]
["LIBRO 1","HOJA 1",2,12,4]
["LIBRO 2","HOJA 1",3,12,4]
["LIBRO 3","HOJA 2",3,7,9]
["LIBRO 3","HOJA 3",3,7,7]
["LIBRO 4","HOJA 4",3,12,10]
["LIBRO 4","HOJA 5",3,13,6]
["LIBRO 4","HOJA 6",3,12,7]
["LIBRO 4","HOJA 7",3,11,6]
["LIBRO 4","HOJA 8",3,13,8]
["LIBRO 4","HOJA 9",3,11,6]
["LIBRO 4","HOJA 10",3,12,9]
["LIBRO 4","HOJA 11",3,12,8]
["LIBRO 5","HOJA 5",7,7,3]
["LIBRO 5","HOJA 6",7,10,3]
["LIBRO 5","HOJA 7",8,10,3]
["LIBRO 5","HOJA 8",7,10,1]
["LIBRO 5","HOJA 9",8,10,1]
["LIBRO 6","HOJA 1",2,8,4]
["LIBRO 6","HOJA 2",3,7,6]
["LIBRO 6","HOJA 3",2,10,4]
["LIBRO 6","HOJA 4",3,10,4]
["LIBRO 7","HOJA 1",5,5,5]
["LIBRO 7","HOJA 2",5,12,5]
["LIBRO 7","HOJA 3",5,8,3]
["LIBRO 7","HOJA 4",5,8,4]
["LIBRO 7","HOJA 5",5,12,5]
["LIBRO 7","HOJA 6",5,7,7]
["LIBRO 7","HOJA 7",5,12,6]
["LIBRO 7","HOJA 8",5,8,8]
["LIBRO 7","HOJA 9",5,8,3]
["LIBRO 7","HOJA 10",5,9,6]
["LIBRO 7","HOJA 11",5,6,10]
["LIBRO 7","HOJA 12",5,10,2]
["LIBRO 7","HOJA 13",5,13,2]
["LIBRO 8","HOJA 1",5,10,2]
["LIBRO 8","HOJA 2",5,8,5]
["LIBRO 8","HOJA 3",5,7,5]
["LIBRO 8","HOJA 4",5,8,4]
["LIBRO 8","HOJA 5",5,7,4]

{"sheet":"Hoja3","index":2,"n_rows":36,"n_cols":5,"rows_kept":36,"cut":false,"hidden":false,"merged":[]}
[]
[]
["LBRO","HOJA","Nº","2016/17","2017/18"]
["LBRO","HOJA","Nº","2016/17","2017/18"]
[]
["LIBRO 1","HOJA 1",2,12,4]
["LIBRO 2","HOJA 1",3,12,4]
["LIBRO 3","HOJA 2",3,7,9]
["LIBRO 3","HOJA 3",3,7,7]
["LIBRO 4","HOJA 4",3,12,10]
["LIBRO 4","HOJA 5",3,13,6]
["LIBRO 4","HOJA 6",3,12,7]
["LIBRO 4","HOJA 7",3,11,6]
["LIBRO 4","HOJA 8",3,13,8]
["LIBRO 4","HOJA 9",3,11,6]
["LIBRO 4","HOJA 10",3,12,9]
["LIBRO 4","HOJA 11",3,12,8]
["LIBRO 5","HOJA 6",7,10,3]
["LIBRO 5","HOJA 7",8,10,3]
["LIBRO 5","HOJA 8",7,10,1]
["LIBRO 5","HOJA 9",8,10,1]
["LIBRO 6","HOJA 3",2,10,4]
["LIBRO 6","HOJA 4",3,10,4]
["LIBRO 7","HOJA 1",5,5,5]
["LIBRO 7","HOJA 2",5,12,5]
["LIBRO 7","HOJA 3",5,8,3]
["LIBRO 7","HOJA 4",5,8,4]
["LIBRO 7","HOJA 5",5,12,5]
["LIBRO 7","HOJA 6",5,7,7]
["LIBRO 7","HOJA 7",5,12,6]
["LIBRO 7","HOJA 11",5,6,10]
["LIBRO 7","HOJA 12",5,10,2]
["LIBRO 7","HOJA 13",5,13,2]
["LIBRO 8","HOJA 1",5,10,2]
["LIBRO 8","HOJA 2",5,8,5]
["LIBRO 8","HOJA 3",5,7,5]

{"sheet":"Hoja4","index":3,"n_rows":41,"n_cols":5,"rows_kept":41,"cut":false,"hidden":false,"merged":[]}
[]
[]
["LBRO","HOJA","Nº","2016/17","2017/18"]
["LBRO","HOJA","Nº","2016/17","2017/18"]
[]
["LIBRO 4","HOJA 3",3,8,5]
["LIBRO 4","HOJA 4",3,12,10]
["LIBRO 4","HOJA 5",3,13,6]
["LIBRO 4","HOJA 6",3,12,7]
["LIBRO 4","HOJA 7",3,11,6]
["LIBRO 4","HOJA 8",3,13,8]
["LIBRO 4","HOJA 9",3,11,6]
["LIBRO 4","HOJA 10",3,12,9]
["LIBRO 4","HOJA 11",3,12,8]
["LIBRO 5","HOJA 1",3,2,2]
["LIBRO 5","HOJA 2",3,3,2]
["LIBRO 5","HOJA 3",7,8,6]
["LIBRO 5","HOJA 4",7,8,6]
["LIBRO 5","HOJA 5",7,7,3]
["LIBRO 5","HOJA 6",7,10,3]
["LIBRO 5","HOJA 7",8,10,3]
["LIBRO 5","HOJA 8",7,10,1]
["LIBRO 5","HOJA 9",8,10,1]
["LIBRO 6","HOJA 1",2,8,4]
["LIBRO 6","HOJA 2",3,7,6]
["LIBRO 6","HOJA 3",2,10,4]
["LIBRO 6","HOJA 4",3,10,4]
["LIBRO 7","HOJA 1",5,5,5]
["LIBRO 7","HOJA 2",5,12,5]
["LIBRO 7","HOJA 3",5,8,3]
["LIBRO 7","HOJA 4",5,8,4]
["LIBRO 7","HOJA 5",5,12,5]
["LIBRO 7","HOJA 6",5,7,7]
["LIBRO 7","HOJA 7",5,12,6]
["LIBRO 7","HOJA 8",5,8,8]
["LIBRO 7","HOJA 9",5,8,3]
["LIBRO 7","HOJA 10",5,9,6]
["LIBRO 7","HOJA 11",5,6,10]
["LIBRO 7","HOJA 12",5,10,2]
["LIBRO 7","HOJA 13",5,13,2]
["LIBRO 8","HOJA 1",5,10,2]

{"sheet":"Hoja5","index":4,"n_rows":28,"n_cols":5,"rows_kept":28,"cut":false,"hidden":false,"merged":[]}
[]
[]
["LBRO","HOJA","Nº","2016/17","2017/18"]
["LBRO","HOJA","Nº","2016/17","2017/18"]
[]
["LIBRO 1","HOJA 1",2,12,4]
["LIBRO 4","HOJA 2",3,8,4]
["LIBRO 4","HOJA 3",3,8,5]
["LIBRO 4","HOJA 4",3,12,10]
["LIBRO 4","HOJA 5",3,13,6]
["LIBRO 4","HOJA 6",3,12,7]
["LIBRO 4","HOJA 7",3,11,6]
["LIBRO 4","HOJA 8",3,13,8]
["LIBRO 5","HOJA 5",7,7,3]
["LIBRO 5","HOJA 6",7,10,3]
["LIBRO 5","HOJA 7",8,10,3]
["LIBRO 5","HOJA 8",7,10,1]
["LIBRO 5","HOJA 9",8,10,1]
["LIBRO 6","HOJA 1",2,8,4]
["LIBRO 6","HOJA 2",3,7,6]
["LIBRO 6","HOJA 3",2,10,4]
["LIBRO 6","HOJA 4",3,10,4]
["LIBRO 7","HOJA 13",5,13,2]
["LIBRO 8","HOJA 1",5,10,2]
["LIBRO 8","HOJA 2",5,8,5]
["LIBRO 8","HOJA 3",5,7,5]
["LIBRO 8","HOJA 4",5,8,4]
["LIBRO 8","HOJA 5",5,7,4]

{"sheet":"Hoja6","index":5,"n_rows":21,"n_cols":5,"rows_kept":21,"cut":false,"hidden":false,"merged":[]}
[]
[]
["LBRO","HOJA","Nº","2016/17","2017/18"]
["LBRO","HOJA","Nº","2016/17","2017/18"]
[]
["LIBRO 1","HOJA 1",2,12,4]
["LIBRO 2","HOJA 1",3,12,4]
["LIBRO 5","HOJA 1",3,2,2]
["LIBRO 5","HOJA 2",3,3,2]
["LIBRO 5","HOJA 3",7,8,6]
["LIBRO 5","HOJA 4",7,8,6]
["LIBRO 5","HOJA 5",7,7,3]
["LIBRO 5","HOJA 6",7,10,3]
["LIBRO 7","HOJA 1",5,5,5]
["LIBRO 7","HOJA 2",5,12,5]
["LIBRO 7","HOJA 3",5,8,3]
["LIBRO 7","HOJA 4",5,8,4]
["LIBRO 8","HOJA 2",5,8,5]
["LIBRO 8","HOJA 3",5,7,5]
["LIBRO 8","HOJA 4",5,8,4]
["LIBRO 8","HOJA 5",5,7,4]

{"sheet":"RESUMEN","index":6,"n_rows":53,"n_cols":9,"rows_kept":53,"cut":false,"hidden":false,"merged":[]}
[]
[null,null,null,"HOJA","HOJA","HOJA","HOJA","HOJA","HOJA"]
[null,null,null,1,2,3,4,5,6]
["LBRO","HOJA","Nº","COINCIDENCIA HOJA","COINCIDENCIA HOJA","COINCIDENCIA HOJA","COINCIDENCIA HOJA","COINCIDENCIA HOJA","COINCIDENCIA HOJA"]
[]
[{"$f":"INDEX(Hoja1!$A$6:$C$100&Hoja2!$A$6:$C$100&Hoja3!$A$6:$C$100&Hoja4!$A$6:$A$100&Hoja5!$A$6:$C$100&Hoja6!$A$6:$C$100,MATCH('BASE DE DATOS'!A6&'BASE DE DATOS'!B6&'BASE DE DATOS'!C6,'BASE DE DATOS'!$A$6:$A$100),0)","v":"LIBRO 1LIBRO 1LIBRO 1LIBRO 4LIBRO 1LIBRO 1"},"HOJA 1",2,{"$f":"IFERROR(INDEX(Hoja1!$A$6:$C$100,MATCH('BASE DE DATOS'!A6&'BASE DE DATOS'!B6&'BASE DE DATOS'!C6,'BASE DE DATOS'!$A$6:$A$100),0),\"\")","v":"LIBRO 1"},{"$f":"IFERROR(INDEX(Hoja2!$A$6:$C$100,MATCH('BASE DE DATOS'!A6&'BASE DE DATOS'!B6&'BASE DE DATOS'!C6,'BASE DE DATOS'!$A$6:$A$100),0),\"\")","v":"LIBRO 1"},{"$f":"IFERROR(INDEX(Hoja3!$A$6:$C$100,MATCH('BASE DE DATOS'!A6&'BASE DE DATOS'!B6&'BASE DE DATOS'!C6,'BASE DE DATOS'!$A$6:$A$100),0),\"\")","v":"LIBRO 1"},{"$f":"IFERROR(INDEX(Hoja4!$A$6:$C$100,MATCH('BASE DE DATOS'!A6&'BASE DE DATOS'!B6&'BASE DE DATOS'!C6,'BASE DE DATOS'!$A$6:$A$100),0),\"\")","v":"LIBRO 4"},{"$f":"IFERROR(INDEX(Hoja5!$A$6:$C$100,MATCH('BASE DE DATOS'!A6&'BASE DE DATOS'!B6&'BASE DE DATOS'!C6,'BASE DE DATOS'!$A$6:$A$100),0),\"\")","v":"LIBRO 1"},{"$f":"IFERROR(INDEX(Hoja6!$A$6:$C$100,MATCH('BASE DE DATOS'!A6&'BASE DE DATOS'!B6&'BASE DE DATOS'!C6,'BASE DE DATOS'!$A$6:$A$100),0),\"\")","v":"LIBRO 1"}]
[{"$f":"INDEX(Hoja1!$A$6:$C$100&Hoja2!$A$6:$C$100&Hoja3!$A$6:$C$100&Hoja4!A7:A100&Hoja5!$A$6:$C$100&Hoja6!$A$6:$C$100,MATCH('BASE DE DATOS'!A7&'BASE DE DATOS'!B7&'BASE DE DATOS'!C7,'BASE DE DATOS'!$A$6:$A$100),0)","v":"LIBRO 2LIBRO 2LIBRO 2LIBRO 4LIBRO 4LIBRO 2"},null,null,{"$f":"IFERROR(INDEX(Hoja1!$A$6:$C$100,MATCH('BASE DE DATOS'!A7&'BASE DE DATOS'!B7&'BASE DE DATOS'!C7,'BASE DE DATOS'!$A$6:$A$100),0),\"\")","v":"LIBRO 2"},{"$f":"IFERROR(INDEX(Hoja2!$A$6:$C$100,MATCH('BASE DE DATOS'!A7&'BASE DE DATOS'!B7&'BASE DE DATOS'!C7,'BASE DE DATOS'!$A$6:$A$100),0),\"\")","v":"LIBRO 2"},{"$f":"IFERROR(INDEX(Hoja3!$A$6:$C$100,MATCH('BASE DE DATOS'!A7&'BASE DE DATOS'!B7&'BASE DE DATOS'!C7,'BASE DE DATOS'!$A$6:$A$100),0),\"\")","v":"LIBRO 2"},{"$f":"IFERROR(INDEX(Hoja4!$A$6:$C$100,MATCH('BASE DE DATOS'!A7&'BASE DE DATOS'!B7&'BASE DE DATOS'!C7,'BASE DE DATOS'!$A$6:$A$100),0),\"\")","v":"LIBRO 4"},{"$f":"IFERROR(INDEX(Hoja5!$A$6:$C$100,MATCH('BASE DE DATOS'!A7&'BASE DE DATOS'!B7&'BASE DE DATOS'!C7,'BASE DE DATOS'!$A$6:$A$100),0),\"\")","v":"LIBRO 4"},{"$f":"IFERROR(INDEX(Hoja6!$A$6:$C$100,MATCH('BASE DE DATOS'!A7&'BASE DE DATOS'!B7&'BASE DE DATOS'!C7,'BASE DE DATOS'!$A$6:$A$100),0),\"\")","v":"LIBRO 2"}]
[{"$f":"INDEX(Hoja1!$A$6:$C$100&Hoja2!$A$6:$C$100&Hoja3!$A$6:$C$100&Hoja4!A8:A101&Hoja5!$A$6:$C$100&Hoja6!$A$6:$C$100,MATCH('BASE DE DATOS'!A7,'BASE DE DATOS'!$A$6:$C$100),0)","v":{"$error":"#N/A"}},null,null,{"$f":"IFERROR(INDEX(Hoja1!$A$6:$C$100,MATCH('BASE DE DATOS'!A8&'BASE DE DATOS'!B8&'BASE DE DATOS'!C8,'BASE DE DATOS'!$A$6:$A$100),0),\"\")","v":"LIBRO 3"},{"$f":"IFERROR(INDEX(Hoja2!$A$6:$C$100,MATCH('BASE DE DATOS'!A8&'BASE DE DATOS'!B8&'BASE DE DATOS'!C8,'BASE DE DATOS'!$A$6:$A$100),0),\"\")","v":"LIBRO 3"},{"$f":"IFERROR(INDEX(Hoja3!$A$6:$C$100,MATCH('BASE DE DATOS'!A8&'BASE DE DATOS'!B8&'BASE DE DATOS'!C8,'BASE DE DATOS'!$A$6:$A$100),0),\"\")","v":"LIBRO 3"},{"$f":"IFERROR(INDEX(Hoja4!$A$6:$C$100,MATCH('BASE DE DATOS'!A8&'BASE DE DATOS'!B8&'BASE DE DATOS'!C8,'BASE DE DATOS'!$A$6:$A$100),0),\"\")","v":"LIBRO 4"},{"$f":"IFERROR(INDEX(Hoja5!$A$6:$C$100,MATCH('BASE DE DATOS'!A8&'BASE DE DATOS'!B8&'BASE DE DATOS'!C8,'BASE DE DATOS'!$A$6:$A$100),0),\"\")","v":"LIBRO 4"},{"$f":"IFERROR(INDEX(Hoja6!$A$6:$C$100,MATCH('BASE DE DATOS'!A8&'BASE DE DATOS'!B8&'BASE DE DATOS'!C8,'BASE DE DATOS'!$A$6:$A$100),0),\"\")","v":"LIBRO 5"}]
[{"$f":"INDEX(Hoja1!$A$6:$C$100&Hoja2!$A$6:$C$100&Hoja3!$A$6:$C$100&Hoja4!A9:A102&Hoja5!$A$6:$C$100&Hoja6!$A$6:$C$100,MATCH('BASE DE DATOS'!A8,'BASE DE DATOS'!$A$6:$C$100),0)","v":{"$error":"#N/A"}},null,null,{"$f":"IFERROR(INDEX(Hoja1!$A$6:$C$100,MATCH('BASE DE DATOS'!A9&'BASE DE DATOS'!B9&'BASE DE DATOS'!C9,'BASE DE DATOS'!$A$6:$A$100),0),\"\")","v":"LIBRO 3"},{"$f":"IFERROR(INDEX(Hoja2!$A$6:$C$100,MATCH('BASE DE DATOS'!A9&'BASE DE DATOS'!B9&'BASE DE DATOS'!C9,'BASE DE DATOS'!$A$6:$A$100),0),\"\")","v":"LIBRO 3"},{"$f":"IFERROR(INDEX(Hoja3!$A$6:$C$100,MATCH('BASE DE DATOS'!A9&'BASE DE DATOS'!B9&'BASE DE DATOS'!C9,'BASE DE DATOS'!$A$6:$A$100),0),\"\")","v":"LIBRO 3"},{"$f":"IFERROR(INDEX(Hoja4!$A$6:$C$100,MATCH('BASE DE DATOS'!A9&'BASE DE DATOS'!B9&'BASE DE DATOS'!C9,'BASE DE DATOS'!$A$6:$A$100),0),\"\")","v":"LIBRO 4"},{"$f":"IFERROR(INDEX(Hoja5!$A$6:$C$100,MATCH('BASE DE DATOS'!A9&'BASE DE DATOS'!B9&'BASE DE DATOS'!C9,'BASE DE DATOS'!$A$6:$A$100),0),\"\")","v":"LIBRO 4"},{"$f":"IFERROR(INDEX(Hoja6!$A$6:$C$100,MATCH('BASE DE DATOS'!A9&'BASE DE DATOS'!B9&'BASE DE DATOS'!C9,'BASE DE DATOS'!$A$6:$A$100),0),\"\")","v":"LIBRO 5"}]
[{"$f":"INDEX(Hoja1!$A$6:$C$100&Hoja2!$A$6:$C$100&Hoja3!$A$6:$C$100&Hoja4!A10:A103&Hoja5!$A$6:$C$100&Hoja6!$A$6:$C$100,MATCH('BASE DE DATOS'!A9,'BASE DE DATOS'!$A$6:$C$100),0)","v":{"$error":"#N/A"}},null,null,{"$f":"IFERROR(INDEX(Hoja1!$A$6:$C$100,MATCH('BASE DE DATOS'!A10&'BASE DE DATOS'!B10&'BASE DE DATOS'!C10,'BASE DE DATOS'!$A$6:$A$100),0),\"\")","v":"LIBRO 4"},{"$f":"IFERROR(INDEX(Hoja2!$A$6:$C$100,MATCH('BASE DE DATOS'!A10&'BASE DE DATOS'!B10&'BASE DE DATOS'!C10,'BASE DE DATOS'!$A$6:$A$100),0),\"\")","v":"LIBRO 4"},{"$f":"IFERROR(INDEX(Hoja3!$A$6:$C$100,MATCH('BASE DE DATOS'!A10&'BASE DE DATOS'!B10&'BASE DE DATOS'!C10,'BASE DE DATOS'!$A$6:$A$100),0),\"\")","v":"LIBRO 4"},{"$f":"IFERROR(INDEX(Hoja4!$A$6:$C$100,MATCH('BASE DE DATOS'!A10&'BASE DE DATOS'!B10&'BASE DE DATOS'!C10,'BASE DE DATOS'!$A$6:$A$100),0),\"\")","v":"LIBRO 5"},{"$f":"IFERROR(INDEX(Hoja5!$A$6:$C$100,MATCH('BASE DE DATOS'!A10&'BASE DE DATOS'!B10&'BASE DE DATOS'!C10,'BASE DE DATOS'!$A$6:$A$100),0),\"\")","v":"LIBRO 5"},{"$f":"IFERROR(INDEX(Hoja6!$A$6:$C$100,MATCH('BASE DE DATOS'!A10&'BASE DE DATOS'!B10&'BASE DE DATOS'!C10,'BASE DE DATOS'!$A$6:$A$100),0),\"\")","v":"LIBRO 7"}]
[{"$f":"INDEX(Hoja1!$A$6:$C$100&Hoja2!$A$6:$C$100&Hoja3!$A$6:$C$100&Hoja4!A11:A104&Hoja5!$A$6:$C$100&Hoja6!$A$6:$C$100,MATCH('BASE DE DATOS'!A10,'BASE DE DATOS'!$A$6:$C$100),0)","v":{"$error":"#N/A"}},null,null,{"$f":"IFERROR(INDEX(Hoja1!$A$6:$C$100,MATCH('BASE DE DATOS'!A11&'BASE DE DATOS'!B11&'BASE DE DATOS'!C11,'BASE DE DATOS'!$A$6:$A$100),0),\"\")","v":"LIBRO 4"},{"$f":"IFERROR(INDEX(Hoja2!$A$6:$C$100,MATCH('BASE DE DATOS'!A11&'BASE DE DATOS'!B11&'BASE DE DATOS'!C11,'BASE DE DATOS'!$A$6:$A$100),0),\"\")","v":"LIBRO 4"},{"$f":"IFERROR(INDEX(Hoja3!$A$6:$C$100,MATCH('BASE DE DATOS'!A11&'BASE DE DATOS'!B11&'BASE DE DATOS'!C11,'BASE DE DATOS'!$A$6:$A$100),0),\"\")","v":"LIBRO 4"},{"$f":"IFERROR(INDEX(Hoja4!$A$6:$C$100,MATCH('BASE DE DATOS'!A11&'BASE DE DATOS'!B11&'BASE DE DATOS'!C11,'BASE DE DATOS'!$A$6:$A$100),0),\"\")","v":"LIBRO 5"},{"$f":"IFERROR(INDEX(Hoja5!$A$6:$C$100,MATCH('BASE DE DATOS'!A11&'BASE DE DATOS'!B11&'BASE DE DATOS'!C11,'BASE DE DATOS'!$A$6:$A$100),0),\"\")","v":"LIBRO 5"},{"$f":"IFERROR(INDEX(Hoja6!$A$6:$C$100,MATCH('BASE DE DATOS'!A11&'BASE DE DATOS'!B11&'BASE DE DATOS'!C11,'BASE DE DATOS'!$A$6:$A$100),0),\"\")","v":"LIBRO 7"}]
[{"$f":"INDEX(Hoja1!$A$6:$C$100&Hoja2!$A$6:$C$100&Hoja3!$A$6:$C$100&Hoja4!A12:A105&Hoja5!$A$6:$C$100&Hoja6!$A$6:$C$100,MATCH('BASE DE DATOS'!A11,'BASE DE DATOS'!$A$6:$C$100),0)","v":{"$error":"#N/A"}},null,null,{"$f":"IFERROR(INDEX(Hoja1!$A$6:$C$100,MATCH('BASE DE DATOS'!A12&'BASE DE DATOS'!B12&'BASE DE DATOS'!C12,'BASE DE DATOS'!$A$6:$A$100),0),\"\")","v":"LIBRO 4"},{"$f":"IFERROR(INDEX(Hoja2!$A$6:$C$100,MATCH('BASE DE DATOS'!A12&'BASE DE DATOS'!B12&'BASE DE DATOS'!C12,'BASE DE DATOS'!$A$6:$A$100),0),\"\")","v":"LIBRO 4"},{"$f":"IFERROR(INDEX(Hoja3!$A$6:$C$100,MATCH('BASE DE DATOS'!A12&'BASE DE DATOS'!B12&'BASE DE DATOS'!C12,'BASE DE DATOS'!$A$6:$A$100),0),\"\")","v":"LIBRO 4"},{"$f":"IFERROR(INDEX(Hoja4!$A$6:$C$100,MATCH('BASE DE DATOS'!A12&'BASE DE DATOS'!B12&'BASE DE DATOS'!C12,'BASE DE DATOS'!$A$6:$A$100),0),\"\")","v":"LIBRO 5"},{"$f":"IFERROR(INDEX(Hoja5!$A$6:$C$100,MATCH('BASE DE DATOS'!A12&'BASE DE DATOS'!B12&'BASE DE DATOS'!C12,'BASE DE DATOS'!$A$6:$A$100),0),\"\")","v":"LIBRO 5"},{"$f":"IFERROR(INDEX(Hoja6!$A$6:$C$100,MATCH('BASE DE DATOS'!A12&'BASE DE DATOS'!B12&'BASE DE DATOS'!C12,'BASE DE DATOS'!$A$6:$A$100),0),\"\")","v":"LIBRO 7"}]
[null,null,null,{"$f":"IFERROR(INDEX(Hoja1!$A$6:$C$100,MATCH('BASE DE DATOS'!A13&'BASE DE DATOS'!B13&'BASE DE DATOS'!C13,'BASE DE DATOS'!$A$6:$A$100),0),\"\")","v":"LIBRO 4"},{"$f":"IFERROR(INDEX(Hoja2!$A$6:$C$100,MATCH('BASE DE DATOS'!A13&'BASE DE DATOS'!B13&'BASE DE DATOS'!C13,'BASE DE DATOS'!$A$6:$A$100),0),\"\")","v":"LIBRO 4"},{"$f":"IFERROR(INDEX(Hoja3!$A$6:$C$100,MATCH('BASE DE DATOS'!A13&'BASE DE DATOS'!B13&'BASE DE DATOS'!C13,'BASE DE DATOS'!$A$6:$A$100),0),\"\")","v":"LIBRO 4"},{"$f":"IFERROR(INDEX(Hoja4!$A$6:$C$100,MATCH('BASE DE DATOS'!A13&'BASE DE DATOS'!B13&'BASE DE DATOS'!C13,'BASE DE DATOS'!$A$6:$A$100),0),\"\")","v":"LIBRO 5"},{"$f":"IFERROR(INDEX(Hoja5!$A$6:$C$100,MATCH('BASE DE DATOS'!A13&'BASE DE DATOS'!B13&'BASE DE DATOS'!C13,'BASE DE DATOS'!$A$6:$A$100),0),\"\")","v":"LIBRO 5"},{"$f":"IFERROR(INDEX(Hoja6!$A$6:$C$100,MATCH('BASE DE DATOS'!A13&'BASE DE DATOS'!B13&'BASE DE DATOS'!C13,'BASE DE DATOS'!$A$6:$A$100),0),\"\")","v":"LIBRO 7"}]
[null,null,null,{"$f":"IFERROR(INDEX(Hoja1!$A$6:$C$100,MATCH('BASE DE DATOS'!A14&'BASE DE DATOS'!B14&'BASE DE DATOS'!C14,'BASE DE DATOS'!$A$6:$A$100),0),\"\")","v":"LIBRO 4"},{"$f":"IFERROR(INDEX(Hoja2!$A$6:$C$100,MATCH('BASE DE DATOS'!A14&'BASE DE DATOS'!B14&'BASE DE DATOS'!C14,'BASE DE DATOS'!$A$6:$A$100),0),\"\")","v":"LIBRO 4"},{"$f":"IFERROR(INDEX(Hoja3!$A$6:$C$100,MATCH('BASE DE DATOS'!A14&'BASE DE DATOS'!B14&'BASE DE DATOS'!C14,'BASE DE DATOS'!$A$6:$A$100),0),\"\")","v":"LIBRO 4"},{"$f":"IFERROR(INDEX(Hoja4!$A$6:$C$100,MATCH('BASE DE DATOS'!A14&'BASE DE DATOS'!B14&'BASE DE DATOS'!C14,'BASE DE DATOS'!$A$6:$A$100),0),\"\")","v":"LIBRO 5"},{"$f":"IFERROR(INDEX(Hoja5!$A$6:$C$100,MATCH('BASE DE DATOS'!A14&'BASE DE DATOS'!B14&'BASE DE DATOS'!C14,'BASE DE DATOS'!$A$6:$A$100),0),\"\")","v":"LIBRO 5"},{"$f":"IFERROR(INDEX(Hoja6!$A$6:$C$100,MATCH('BASE DE DATOS'!A14&'BASE DE DATOS'!B14&'BASE DE DATOS'!C14,'BASE DE DATOS'!$A$6:$A$100),0),\"\")","v":"LIBRO 7"}]
[null,null,null,{"$f":"IFERROR(INDEX(Hoja1!$A$6:$C$100,MATCH('BASE DE DATOS'!A15&'BASE DE DATOS'!B15&'BASE DE DATOS'!C15,'BASE DE DATOS'!$A$6:$A$100),0),\"\")","v":"LIBRO 4"},{"$f":"IFERROR(INDEX(Hoja2!$A$6:$C$100,MATCH('BASE DE DATOS'!A15&'BASE DE DATOS'!B15&'BASE DE DATOS'!C15,'BASE DE DATOS'!$A$6:$A$100),0),\"\")","v":"LIBRO 4"},{"$f":"IFERROR(INDEX(Hoja3!$A$6:$C$100,MATCH('BASE DE DATOS'!A15&'BASE DE DATOS'!B15&'BASE DE DATOS'!C15,'BASE DE DATOS'!$A$6:$A$100),0),\"\")","v":"LIBRO 4"},{"$f":"IFERROR(INDEX(Hoja4!$A$6:$C$100,MATCH('BASE DE DATOS'!A15&'BASE DE DATOS'!B15&'BASE DE DATOS'!C15,'BASE DE DATOS'!$A$6:$A$100),0),\"\")","v":"LIBRO 5"},{"$f":"IFERROR(INDEX(Hoja5!$A$6:$C$100,MATCH('BASE DE DATOS'!A15&'BASE DE DATOS'!B15&'BASE DE DATOS'!C15,'BASE DE DATOS'!$A$6:$A$100),0),\"\")","v":"LIBRO 5"},{"$f":"IFERROR(INDEX(Hoja6!$A$6:$C$100,MATCH('BASE DE DATOS'!A15&'BASE DE DATOS'!B15&'BASE DE DATOS'!C15,'BASE DE DATOS'!$A$6:$A$100),0),\"\")","v":"LIBRO 7"}]
[null,null,null,{"$f":"IFERROR(INDEX(Hoja1!$A$6:$C$100,MATCH('BASE DE DATOS'!A16&'BASE DE DATOS'!B16&'BASE DE DATOS'!C16,'BASE DE DATOS'!$A$6:$A$100),0),\"\")","v":"LIBRO 4"},{"$f":"IFERROR(INDEX(Hoja2!$A$6:$C$100,MATCH('BASE DE DATOS'!A16&'BASE DE DATOS'!B16&'BASE DE DATOS'!C16,'BASE DE DATOS'!$A$6:$A$100),0),\"\")","v":"LIBRO 4"},{"$f":"IFERROR(INDEX(Hoja3!$A$6:$C$100,MATCH('BASE DE DATOS'!A16&'BASE DE DATOS'!B16&'BASE DE DATOS'!C16,'BASE DE DATOS'!$A$6:$A$100),0),\"\")","v":"LIBRO 4"},{"$f":"IFERROR(INDEX(Hoja4!$A$6:$C$100,MATCH('BASE DE DATOS'!A16&'BASE DE DATOS'!B16&'BASE DE DATOS'!C16,'BASE DE DATOS'!$A$6:$A$100),0),\"\")","v":"LIBRO 5"},{"$f":"IFERROR(INDEX(Hoja5!$A$6:$C$100,MATCH('BASE DE DATOS'!A16&'BASE DE DATOS'!B16&'BASE DE DATOS'!C16,'BASE DE DATOS'!$A$6:$A$100),0),\"\")","v":"LIBRO 5"},{"$f":"IFERROR(INDEX(Hoja6!$A$6:$C$100,MATCH('BASE DE DATOS'!A16&'BASE DE DATOS'!B16&'BASE DE DATOS'!C16,'BASE DE DATOS'!$A$6:$A$100),0),\"\")","v":"LIBRO 7"}]
[null,null,null,{"$f":"IFERROR(INDEX(Hoja1!$A$6:$C$100,MATCH('BASE DE DATOS'!A17&'BASE DE DATOS'!B17&'BASE DE DATOS'!C17,'BASE DE DATOS'!$A$6:$A$100),0),\"\")","v":"LIBRO 4"},{"$f":"IFERROR(INDEX(Hoja2!$A$6:$C$100,MATCH('BASE DE DATOS'!A17&'BASE DE DATOS'!B17&'BASE DE DATOS'!C17,'BASE DE DATOS'!$A$6:$A$100),0),\"\")","v":"LIBRO 4"},{"$f":"IFERROR(INDEX(Hoja3!$A$6:$C$100,MATCH('BASE DE DATOS'!A17&'BASE DE DATOS'!B17&'BASE DE DATOS'!C17,'BASE DE DATOS'!$A$6:$A$100),0),\"\")","v":"LIBRO 4"},{"$f":"IFERROR(INDEX(Hoja4!$A$6:$C$100,MATCH('BASE DE DATOS'!A17&'BASE DE DATOS'!B17&'BASE DE DATOS'!C17,'BASE DE DATOS'!$A$6:$A$100),0),\"\")","v":"LIBRO 5"},{"$f":"IFERROR(INDEX(Hoja5!$A$6:$C$100,MATCH('BASE DE DATOS'!A17&'BASE DE DATOS'!B17&'BASE DE DATOS'!C17,'BASE DE DATOS'!$A$6:$A$100),0),\"\")","v":"LIBRO 5"},{"$f":"IFERROR(INDEX(Hoja6!$A$6:$C$100,MATCH('BASE DE DATOS'!A17&'BASE DE DATOS'!B17&'BASE DE DATOS'!C17,'BASE DE DATOS'!$A$6:$A$100),0),\"\")","v":"LIBRO 7"}]
[null,null,null,{"$f":"IFERROR(INDEX(Hoja1!$A$6:$C$100,MATCH('BASE DE DATOS'!A18&'BASE DE DATOS'!B18&'BASE DE DATOS'!C18,'BASE DE DATOS'!$A$6:$A$100),0),\"\")","v":"LIBRO 5"},{"$f":"IFERROR(INDEX(Hoja2!$A$6:$C$100,MATCH('BASE DE DATOS'!A18&'BASE DE DATOS'!B18&'BASE DE DATOS'!C18,'BASE DE DATOS'!$A$6:$A$100),0),\"\")","v":"LIBRO 5"},{"$f":"IFERROR(INDEX(Hoja3!$A$6:$C$100,MATCH('BASE DE DATOS'!A18&'BASE DE DATOS'!B18&'BASE DE DATOS'!C18,'BASE DE DATOS'!$A$6:$A$100),0),\"\")","v":"LIBRO 6"},{"$f":"IFERROR(INDEX(Hoja4!$A$6:$C$100,MATCH('BASE DE DATOS'!A18&'BASE DE DATOS'!B18&'BASE DE DATOS'!C18,'BASE DE DATOS'!$A$6:$A$100),0),\"\")","v":"LIBRO 5"},{"$f":"IFERROR(INDEX(Hoja5!$A$6:$C$100,MATCH('BASE DE DATOS'!A18&'BASE DE DATOS'!B18&'BASE DE DATOS'!C18,'BASE DE DATOS'!$A$6:$A$100),0),\"\")","v":"LIBRO 6"},{"$f":"IFERROR(INDEX(Hoja6!$A$6:$C$100,MATCH('BASE DE DATOS'!A18&'BASE DE DATOS'!B18&'BASE DE DATOS'!C18,'BASE DE DATOS'!$A$6:$A$100),0),\"\")","v":0}]
[null,null,null,{"$f":"IFERROR(INDEX(Hoja1!$A$6:$C$100,MATCH('BASE DE DATOS'!A19&'BASE DE DATOS'!B19&'BASE DE DATOS'!C19,'BASE DE DATOS'!$A$6:$A$100),0),\"\")","v":"LIBRO 5"},{"$f":"IFERROR(INDEX(Hoja2!$A$6:$C$100,MATCH('BASE DE DATOS'!A19&'BASE DE DATOS'!B19&'BASE DE DATOS'!C19,'BASE DE DATOS'!$A$6:$A$100),0),\"\")","v":"LIBRO 5"},{"$f":"IFERROR(INDEX(Hoja3!$A$6:$C$100,MATCH('BASE DE DATOS'!A19&'BASE DE DATOS'!B19&'BASE DE DATOS'!C19,'BASE DE DATOS'!$A$6:$A$100),0),\"\")","v":"LIBRO 6"},{"$f":"IFERROR(INDEX(Hoja4!$A$6:$C$100,MATCH('BASE DE DATOS'!A19&'BASE DE DATOS'!B19&'BASE DE DATOS'!C19,'BASE DE DATOS'!$A$6:$A$100),0),\"\")","v":"LIBRO 5"},{"$f":"IFERROR(INDEX(Hoja5!$A$6:$C$100,MATCH('BASE DE DATOS'!A19&'BASE DE DATOS'!B19&'BASE DE DATOS'!C19,'BASE DE DATOS'!$A$6:$A$100),0),\"\")","v":"LIBRO 6"},{"$f":"IFERROR(INDEX(Hoja6!$A$6:$C$100,MATCH('BASE DE DATOS'!A19&'BASE DE DATOS'!B19&'BASE DE DATOS'!C19,'BASE DE DATOS'!$A$6:$A$100),0),\"\")","v":0}]
[null,null,null,{"$f":"IFERROR(INDEX(Hoja1!$A$6:$C$100,MATCH('BASE DE DATOS'!A20&'BASE DE DATOS'!B20&'BASE DE DATOS'!C20,'BASE DE DATOS'!$A$6:$A$100),0),\"\")","v":"LIBRO 5"},{"$f":"IFERROR(INDEX(Hoja2!$A$6:$C$100,MATCH('BASE DE DATOS'!A20&'BASE DE DATOS'!B20&'BASE DE DATOS'!C20,'BASE DE DATOS'!$A$6:$A$100),0),\"\")","v":"LIBRO 5"},{"$f":"IFERROR(INDEX(Hoja3!$A$6:$C$100,MATCH('BASE DE DATOS'!A20&'BASE DE DATOS'!B20&'BASE DE DATOS'!C20,'BASE DE DATOS'!$A$6:$A$100),0),\"\")","v":"LIBRO 6"},{"$f":"IFERROR(INDEX(Hoja4!$A$6:$C$100,MATCH('BASE DE DATOS'!A20&'BASE DE DATOS'!B20&'BASE DE DATOS'!C20,'BASE DE DATOS'!$A$6:$A$100),0),\"\")","v":"LIBRO 5"},{"$f":"IFERROR(INDEX(Hoja5!$A$6:$C$100,MATCH('BASE DE DATOS'!A20&'BASE DE DATOS'!B20&'BASE DE DATOS'!C20,'BASE DE DATOS'!$A$6:$A$100),0),\"\")","v":"LIBRO 6"},{"$f":"IFERROR(INDEX(Hoja6!$A$6:$C$100,MATCH('BASE DE DATOS'!A20&'BASE DE DATOS'!B20&'BASE DE DATOS'!C20,'BASE DE DATOS'!$A$6:$A$100),0),\"\")","v":0}]
[null,null,null,{"$f":"IFERROR(INDEX(Hoja1!$A$6:$C$100,MATCH('BASE DE DATOS'!A21&'BASE DE DATOS'!B21&'BASE DE DATOS'!C21,'BASE DE DATOS'!$A$6:$A$100),0),\"\")","v":"LIBRO 5"},{"$f":"IFERROR(INDEX(Hoja2!$A$6:$C$100,MATCH('BASE DE DATOS'!A21&'BASE DE DATOS'!B21&'BASE DE DATOS'!C21,'BASE DE DATOS'!$A$6:$A$100),0),\"\")","v":"LIBRO 5"},{"$f":"IFERROR(INDEX(Hoja3!$A$6:$C$100,MATCH('BASE DE DATOS'!A21&'BASE DE DATOS'!B21&'BASE DE DATOS'!C21,'BASE DE DATOS'!$A$6:$A$100),0),\"\")","v":"LIBRO 6"},{"$f":"IFERROR(INDEX(Hoja4!$A$6:$C$100,MATCH('BASE DE DATOS'!A21&'BASE DE DATOS'!B21&'BASE DE DATOS'!C21,'BASE DE DATOS'!$A$6:$A$100),0),\"\")","v":"LIBRO 5"},{"$f":"IFERROR(INDEX(Hoja5!$A$6:$C$100,MATCH('BASE DE DATOS'!A21&'BASE DE DATOS'!B21&'BASE DE DATOS'!C21,'BASE DE DATOS'!$A$6:$A$100),0),\"\")","v":"LIBRO 6"},{"$f":"IFERROR(INDEX(Hoja6!$A$6:$C$100,MATCH('BASE DE DATOS'!A21&'BASE DE DATOS'!B21&'BASE DE DATOS'!C21,'BASE DE DATOS'!$A$6:$A$100),0),\"\")","v":0}]
[null,null,null,{"$f":"IFERROR(INDEX(Hoja1!$A$6:$C$100,MATCH('BASE DE DATOS'!A22&'BASE DE DATOS'!B22&'BASE DE DATOS'!C22,'BASE DE DATOS'!$A$6:$A$100),0),\"\")","v":"LIBRO 5"},{"$f":"IFERROR(INDEX(Hoja2!$A$6:$C$100,MATCH('BASE DE DATOS'!A22&'BASE DE DATOS'!B22&'BASE DE DATOS'!C22,'BASE DE DATOS'!$A$6:$A$100),0),\"\")","v":"LIBRO 5"},{"$f":"IFERROR(INDEX(Hoja3!$A$6:$C$100,MATCH('BASE DE DATOS'!A22&'BASE DE DATOS'!B22&'BASE DE DATOS'!C22,'BASE DE DATOS'!$A$6:$A$100),0),\"\")","v":"LIBRO 6"},{"$f":"IFERROR(INDEX(Hoja4!$A$6:$C$100,MATCH('BASE DE DATOS'!A22&'BASE DE DATOS'!B22&'BASE DE DATOS'!C22,'BASE DE DATOS'!$A$6:$A$100),0),\"\")","v":"LIBRO 5"},{"$f":"IFERROR(INDEX(Hoja5!$A$6:$C$100,MATCH('BASE DE DATOS'!A22&'BASE DE DATOS'!B22&'BASE DE DATOS'!C22,'BASE DE DATOS'!$A$6:$A$100),0),\"\")","v":"LIBRO 6"},{"$f":"IFERROR(INDEX(Hoja6!$A$6:$C$100,MATCH('BASE DE DATOS'!A22&'BASE DE DATOS'!B22&'BASE DE DATOS'!C22,'BASE DE DATOS'!$A$6:$A$100),0),\"\")","v":0}]
[null,null,null,{"$f":"IFERROR(INDEX(Hoja1!$A$6:$C$100,MATCH('BASE DE DATOS'!A23&'BASE DE DATOS'!B23&'BASE DE DATOS'!C23,'BASE DE DATOS'!$A$6:$A$100),0),\"\")","v":"LIBRO 6"},{"$f":"IFERROR(INDEX(Hoja2!$A$6:$C$100,MATCH('BASE DE DATOS'!A23&'BASE DE DATOS'!B23&'BASE DE DATOS'!C23,'BASE DE DATOS'!$A$6:$A$100),0),\"\")","v":"LIBRO 6"},{"$f":"IFERROR(INDEX(Hoja3!$A$6:$C$100,MATCH('BASE DE DATOS'!A23&'BASE DE DATOS'!B23&'BASE DE DATOS'!C23,'BASE DE DATOS'!$A$6:$A$100),0),\"\")","v":"LIBRO 7"},{"$f":"IFERROR(INDEX(Hoja4!$A$6:$C$100,MATCH('BASE DE DATOS'!A23&'BASE DE DATOS'!B23&'BASE DE DATOS'!C23,'BASE DE DATOS'!$A$6:$A$100),0),\"\")","v":"LIBRO 6"},{"$f":"IFERROR(INDEX(Hoja5!$A$6:$C$100,MATCH('BASE DE DATOS'!A23&'BASE DE DATOS'!B23&'BASE DE DATOS'!C23,'BASE DE DATOS'!$A$6:$A$100),0),\"\")","v":"LIBRO 8"},{"$f":"IFERROR(INDEX(Hoja6!$A$6:$C$100,MATCH('BASE DE DATOS'!A23&'BASE DE DATOS'!B23&'BASE DE DATOS'!C23,'BASE DE DATOS'!$A$6:$A$100),0),\"\")","v":0}]
[null,null,null,{"$f":"IFERROR(INDEX(Hoja1!$A$6:$C$100,MATCH('BASE DE DATOS'!A24&'BASE DE DATOS'!B24&'BASE DE DATOS'!C24,'BASE DE DATOS'!$A$6:$A$100),0),\"\")","v":"LIBRO 6"},{"$f":"IFERROR(INDEX(Hoja2!$A$6:$C$100,MATCH('BASE DE DATOS'!A24&'BASE DE DATOS'!B24&'BASE DE DATOS'!C24,'BASE DE DATOS'!$A$6:$A$100),0),\"\")","v":"LIBRO 6"},{"$f":"IFERROR(INDEX(Hoja3!$A$6:$C$100,MATCH('BASE DE DATOS'!A24&'BASE DE DATOS'!B24&'BASE DE DATOS'!C24,'BASE DE DATOS'!$A$6:$A$100),0),\"\")","v":"LIBRO 7"},{"$f":"IFERROR(INDEX(Hoja4!$A$6:$C$100,MATCH('BASE DE DATOS'!A24&'BASE DE DATOS'!B24&'BASE DE DATOS'!C24,'BASE DE DATOS'!$A$6:$A$100),0),\"\")","v":"LIBRO 6"},{"$f":"IFERROR(INDEX(Hoja5!$A$6:$C$100,MATCH('BASE DE DATOS'!A24&'BASE DE DATOS'!B24&'BASE DE DATOS'!C24,'BASE DE DATOS'!$A$6:$A$100),0),\"\")","v":"LIBRO 8"},{"$f":"IFERROR(INDEX(Hoja6!$A$6:$C$100,MATCH('BASE DE DATOS'!A24&'BASE DE DATOS'!B24&'BASE DE DATOS'!C24,'BASE DE DATOS'!$A$6:$A$100),0),\"\")","v":0}]
[null,null,null,{"$f":"IFERROR(INDEX(Hoja1!$A$6:$C$100,MATCH('BASE DE DATOS'!A25&'BASE DE DATOS'!B25&'BASE DE DATOS'!C25,'BASE DE DATOS'!$A$6:$A$100),0),\"\")","v":"LIBRO 6"},{"$f":"IFERROR(INDEX(Hoja2!$A$6:$C$100,MATCH('BASE DE DATOS'!A25&'BASE DE DATOS'!B25&'BASE DE DATOS'!C25,'BASE DE DATOS'!$A$6:$A$100),0),\"\")","v":"LIBRO 6"},{"$f":"IFERROR(INDEX(Hoja3!$A$6:$C$100,MATCH('BASE DE DATOS'!A25&'BASE DE DATOS'!B25&'BASE DE DATOS'!C25,'BASE DE DATOS'!$A$6:$A$100),0),\"\")","v":"LIBRO 7"},{"$f":"IFERROR(INDEX(Hoja4!$A$6:$C$100,MATCH('BASE DE DATOS'!A25&'BASE DE DATOS'!B25&'BASE DE DATOS'!C25,'BASE DE DATOS'!$A$6:$A$100),0),\"\")","v":"LIBRO 6"},{"$f":"IFERROR(INDEX(Hoja5!$A$6:$C$100,MATCH('BASE DE DATOS'!A25&'BASE DE DATOS'!B25&'BASE DE DATOS'!C25,'BASE DE DATOS'!$A$6:$A$100),0),\"\")","v":"LIBRO 8"},{"$f":"IFERROR(INDEX(Hoja6!$A$6:$C$100,MATCH('BASE DE DATOS'!A25&'BASE DE DATOS'!B25&'BASE DE DATOS'!C25,'BASE DE DATOS'!$A$6:$A$100),0),\"\")","v":0}]
[null,null,null,{"$f":"IFERROR(INDEX(Hoja1!$A$6:$C$100,MATCH('BASE DE DATOS'!A26&'BASE DE DATOS'!B26&'BASE DE DATOS'!C26,'BASE DE DATOS'!$A$6:$A$100),0),\"\")","v":"LIBRO 6"},{"$f":"IFERROR(INDEX(Hoja2!$A$6:$C$100,MATCH('BASE DE DATOS'!A26&'BASE DE DATOS'!B26&'BASE DE DATOS'!C26,'BASE DE DATOS'!$A$6:$A$100),0),\"\")","v":"LIBRO 6"},{"$f":"IFERROR(INDEX(Hoja3!$A$6:$C$100,MATCH('BASE DE DATOS'!A26&'BASE DE DATOS'!B26&'BASE DE DATOS'!C26,'BASE DE DATOS'!$A$6:$A$100),0),\"\")","v":"LIBRO 7"},{"$f":"IFERROR(INDEX(Hoja4!$A$6:$C$100,MATCH('BASE DE DATOS'!A26&'BASE DE DATOS'!B26&'BASE DE DATOS'!C26,'BASE DE DATOS'!$A$6:$A$100),0),\"\")","v":"LIBRO 6"},{"$f":"IFERROR(INDEX(Hoja5!$A$6:$C$100,MATCH('BASE DE DATOS'!A26&'BASE DE DATOS'!B26&'BASE DE DATOS'!C26,'BASE DE DATOS'!$A$6:$A$100),0),\"\")","v":"LIBRO 8"},{"$f":"IFERROR(INDEX(Hoja6!$A$6:$C$100,MATCH('BASE DE DATOS'!A26&'BASE DE DATOS'!B26&'BASE DE DATOS'!C26,'BASE DE DATOS'!$A$6:$A$100),0),\"\")","v":0}]
[null,null,null,{"$f":"IFERROR(INDEX(Hoja1!$A$6:$C$100,MATCH('BASE DE DATOS'!A27&'BASE DE DATOS'!B27&'BASE DE DATOS'!C27,'BASE DE DATOS'!$A$6:$A$100),0),\"\")","v":"LIBRO 7"},{"$f":"IFERROR(INDEX(Hoja2!$A$6:$C$100,MATCH('BASE DE DATOS'!A27&'BASE DE DATOS'!B27&'BASE DE DATOS'!C27,'BASE DE DATOS'!$A$6:$A$100),0),\"\")","v":"LIBRO 7"},{"$f":"IFERROR(INDEX(Hoja3!$A$6:$C$100,MATCH('BASE DE DATOS'!A27&'BASE DE DATOS'!B27&'BASE DE DATOS'!C27,'BASE DE DATOS'!$A$6:$A$100),0),\"\")","v":0},{"$f":"IFERROR(INDEX(Hoja4!$A$6:$C$100,MATCH('BASE DE DATOS'!A27&'BASE DE DATOS'!B27&'BASE DE DATOS'!C27,'BASE DE DATOS'!$A$6:$A$100),0),\"\")","v":"LIBRO 7"},{"$f":"IFERROR(INDEX(Hoja5!$A$6:$C$100,MATCH('BASE DE DATOS'!A27&'BASE DE DATOS'!B27&'BASE DE DATOS'!C27,'BASE DE DATOS'!$A$6:$A$100),0),\"\")","v":0},{"$f":"IFERROR(INDEX(Hoja6!$A$6:$C$100,MATCH('BASE DE DATOS'!A27&'BASE DE DATOS'!B27&'BASE DE DATOS'!C27,'BASE DE DATOS'!$A$6:$A$100),0),\"\")","v":0}]
[null,null,null,{"$f":"IFERROR(INDEX(Hoja1!$A$6:$C$100,MATCH('BASE DE DATOS'!A28&'BASE DE DATOS'!B28&'BASE DE DATOS'!C28,'BASE DE DATOS'!$A$6:$A$100),0),\"\")","v":"LIBRO 7"},{"$f":"IFERROR(INDEX(Hoja2!$A$6:$C$100,MATCH('BASE DE DATOS'!A28&'BASE DE DATOS'!B28&'BASE DE DATOS'!C28,'BASE DE DATOS'!$A$6:$A$100),0),\"\")","v":"LIBRO 7"},{"$f":"IFERROR(INDEX(Hoja3!$A$6:$C$100,MATCH('BASE DE DATOS'!A28&'BASE DE DATOS'!B28&'BASE DE DATOS'!C28,'BASE DE DATOS'!$A$6:$A$100),0),\"\")","v":0},{"$f":"IFERROR(INDEX(Hoja4!$A$6:$C$100,MATCH('BASE DE DATOS'!A28&'BASE DE DATOS'!B28&'BASE DE DATOS'!C28,'BASE DE DATOS'!$A$6:$A$100),0),\"\")","v":"LIBRO 7"},{"$f":"IFERROR(INDEX(Hoja5!$A$6:$C$100,MATCH('BASE DE DATOS'!A28&'BASE DE DATOS'!B28&'BASE DE DATOS'!C28,'BASE DE DATOS'!$A$6:$A$100),0),\"\")","v":0},{"$f":"IFERROR(INDEX(Hoja6!$A$6:$C$100,MATCH('BASE DE DATOS'!A28&'BASE DE DATOS'!B28&'BASE DE DATOS'!C28,'BASE DE DATOS'!$A$6:$A$100),0),\"\")","v":0}]
[null,null,null,{"$f":"IFERROR(INDEX(Hoja1!$A$6:$C$100,MATCH('BASE DE DATOS'!A29&'BASE DE DATOS'!B29&'BASE DE DATOS'!C29,'BASE DE DATOS'!$A$6:$A$100),0),\"\")","v":"LIBRO 7"},{"$f":"IFERROR(INDEX(Hoja2!$A$6:$C$100,MATCH('BASE DE DATOS'!A29&'BASE DE DATOS'!B29&'BASE DE DATOS'!C29,'BASE DE DATOS'!$A$6:$A$100),0),\"\")","v":"LIBRO 7"},{"$f":"IFERROR(INDEX(Hoja3!$A$6:$C$100,MATCH('BASE DE DATOS'!A29&'BASE DE DATOS'!B29&'BASE DE DATOS'!C29,'BASE DE DATOS'!$A$6:$A$100),0),\"\")","v":0},{"$f":"IFERROR(INDEX(Hoja4!$A$6:$C$100,MATCH('BASE DE DATOS'!A29&'BASE DE DATOS'!B29&'BASE DE DATOS'!C29,'BASE DE DATOS'!$A$6:$A$100),0),\"\")","v":"LIBRO 7"},{"$f":"IFERROR(INDEX(Hoja5!$A$6:$C$100,MATCH('BASE DE DATOS'!A29&'BASE DE DATOS'!B29&'BASE DE DATOS'!C29,'BASE DE DATOS'!$A$6:$A$100),0),\"\")","v":0},{"$f":"IFERROR(INDEX(Hoja6!$A$6:$C$100,MATCH('BASE DE DATOS'!A29&'BASE DE DATOS'!B29&'BASE DE DATOS'!C29,'BASE DE DATOS'!$A$6:$A$100),0),\"\")","v":0}]
[null,null,null,{"$f":"IFERROR(INDEX(Hoja1!$A$6:$C$100,MATCH('BASE DE DATOS'!A30&'BASE DE DATOS'!B30&'BASE DE DATOS'!C30,'BASE DE DATOS'!$A$6:$A$100),0),\"\")","v":"LIBRO 7"},{"$f":"IFERROR(INDEX(Hoja2!$A$6:$C$100,MATCH('BASE DE DATOS'!A30&'BASE DE DATOS'!B30&'BASE DE DATOS'!C30,'BASE DE DATOS'!$A$6:$A$100),0),\"\")","v":"LIBRO 7"},{"$f":"IFERROR(INDEX(Hoja3!$A$6:$C$100,MATCH('BASE DE DATOS'!A30&'BASE DE DATOS'!B30&'BASE DE DATOS'!C30,'BASE DE DATOS'!$A$6:$A$100),0),\"\")","v":0},{"$f":"IFERROR(INDEX(Hoja4!$A$6:$C$100,MATCH('BASE DE DATOS'!A30&'BASE DE DATOS'!B30&'BASE DE DATOS'!C30,'BASE DE DATOS'!$A$6:$A$100),0),\"\")","v":"LIBRO 7"},{"$f":"IFERROR(INDEX(Hoja5!$A$6:$C$100,MATCH('BASE DE DATOS'!A30&'BASE DE DATOS'!B30&'BASE DE DATOS'!C30,'BASE DE DATOS'!$A$6:$A$100),0),\"\")","v":0},{"$f":"IFERROR(INDEX(Hoja6!$A$6:$C$100,MATCH('BASE DE DATOS'!A30&'BASE DE DATOS'!B30&'BASE DE DATOS'!C30,'BASE DE DATOS'!$A$6:$A$100),0),\"\")","v":0}]
[null,null,null,{"$f":"IFERROR(INDEX(Hoja1!$A$6:$C$100,MATCH('BASE DE DATOS'!A31&'BASE DE DATOS'!B31&'BASE DE DATOS'!C31,'BASE DE DATOS'!$A$6:$A$100),0),\"\")","v":"LIBRO 7"},{"$f":"IFERROR(INDEX(Hoja2!$A$6:$C$100,MATCH('BASE DE DATOS'!A31&'BASE DE DATOS'!B31&'BASE DE DATOS'!C31,'BASE DE DATOS'!$A$6:$A$100),0),\"\")","v":"LIBRO 7"},{"$f":"IFERROR(INDEX(Hoja3!$A$6:$C$100,MATCH('BASE DE DATOS'!A31&'BASE DE DATOS'!B31&'BASE DE DATOS'!C31,'BASE DE DATOS'!$A$6:$A$100),0),\"\")","v":0},{"$f":"IFERROR(INDEX(Hoja4!$A$6:$C$100,MATCH('BASE DE DATOS'!A31&'BASE DE DATOS'!B31&'BASE DE DATOS'!C31,'BASE DE DATOS'!$A$6:$A$100),0),\"\")","v":"LIBRO 7"},{"$f":"IFERROR(INDEX(Hoja5!$A$6:$C$100,MATCH('BASE DE DATOS'!A31&'BASE DE DATOS'!B31&'BASE DE DATOS'!C31,'BASE DE DATOS'!$A$6:$A$100),0),\"\")","v":0},{"$f":"IFERROR(INDEX(Hoja6!$A$6:$C$100,MATCH('BASE DE DATOS'!A31&'BASE DE DATOS'!B31&'BASE DE DATOS'!C31,'BASE DE DATOS'!$A$6:$A$100),0),\"\")","v":0}]
[null,null,null,{"$f":"IFERROR(INDEX(Hoja1!$A$6:$C$100,MATCH('BASE DE DATOS'!A32&'BASE DE DATOS'!B32&'BASE DE DATOS'!C32,'BASE DE DATOS'!$A$6:$A$100),0),\"\")","v":"LIBRO 7"},{"$f":"IFERROR(INDEX(Hoja2!$A$6:$C$100,MATCH('BASE DE DATOS'!A32&'BASE DE DATOS'!B32&'BASE DE DATOS'!C32,'BASE DE DATOS'!$A$6:$A$100),0),\"\")","v":"LIBRO 7"},{"$f":"IFERROR(INDEX(Hoja3!$A$6:$C$100,MATCH('BASE DE DATOS'!A32&'BASE DE DATOS'!B32&'BASE DE DATOS'!C32,'BASE DE DATOS'!$A$6:$A$100),0),\"\")","v":0},{"$f":"IFERROR(INDEX(Hoja4!$A$6:$C$100,MATCH('BASE DE DATOS'!A32&'BASE DE DATOS'!B32&'BASE DE DATOS'!C32,'BASE DE DATOS'!$A$6:$A$100),0),\"\")","v":"LIBRO 7"},{"$f":"IFERROR(INDEX(Hoja5!$A$6:$C$100,MATCH('BASE DE DATOS'!A32&'BASE DE DATOS'!B32&'BASE DE DATOS'!C32,'BASE DE DATOS'!$A$6:$A$100),0),\"\")","v":0},{"$f":"IFERROR(INDEX(Hoja6!$A$6:$C$100,MATCH('BASE DE DATOS'!A32&'BASE DE DATOS'!B32&'BASE DE DATOS'!C32,'BASE DE DATOS'!$A$6:$A$100),0),\"\")","v":0}]
[null,null,null,{"$f":"IFERROR(INDEX(Hoja1!$A$6:$C$100,MATCH('BASE DE DATOS'!A33&'BASE DE DATOS'!B33&'BASE DE DATOS'!C33,'BASE DE DATOS'!$A$6:$A$100),0),\"\")","v":"LIBRO 7"},{"$f":"IFERROR(INDEX(Hoja2!$A$6:$C$100,MATCH('BASE DE DATOS'!A33&'BASE DE DATOS'!B33&'BASE DE DATOS'!C33,'BASE DE DATOS'!$A$6:$A$100),0),\"\")","v":"LIBRO 7"},{"$f":"IFERROR(INDEX(Hoja3!$A$6:$C$100,MATCH('BASE DE DATOS'!A33&'BASE DE DATOS'!B33&'BASE DE DATOS'!C33,'BASE DE DATOS'!$A$6:$A$100),0),\"\")","v":0},{"$f":"IFERROR(INDEX(Hoja4!$A$6:$C$100,MATCH('BASE DE DATOS'!A33&'BASE DE DATOS'!B33&'BASE DE DATOS'!C33,'BASE DE DATOS'!$A$6:$A$100),0),\"\")","v":"LIBRO 7"},{"$f":"IFERROR(INDEX(Hoja5!$A$6:$C$100,MATCH('BASE DE DATOS'!A33&'BASE DE DATOS'!B33&'BASE DE DATOS'!C33,'BASE DE DATOS'!$A$6:$A$100),0),\"\")","v":0},{"$f":"IFERROR(INDEX(Hoja6!$A$6:$C$100,MATCH('BASE DE DATOS'!A33&'BASE DE DATOS'!B33&'BASE DE DATOS'!C33,'BASE DE DATOS'!$A$6:$A$100),0),\"\")","v":0}]
[null,null,null,{"$f":"IFERROR(INDEX(Hoja1!$A$6:$C$100,MATCH('BASE DE DATOS'!A34&'BASE DE DATOS'!B34&'BASE DE DATOS'!C34,'BASE DE DATOS'!$A$6:$A$100),0),\"\")","v":"LIBRO 7"},{"$f":"IFERROR(INDEX(Hoja2!$A$6:$C$100,MATCH('BASE DE DATOS'!A34&'BASE DE DATOS'!B34&'BASE DE DATOS'!C34,'BASE DE DATOS'!$A$6:$A$100),0),\"\")","v":"LIBRO 7"},{"$f":"IFERROR(INDEX(Hoja3!$A$6:$C$100,MATCH('BASE DE DATOS'!A34&'BASE DE DATOS'!B34&'BASE DE DATOS'!C34,'BASE DE DATOS'!$A$6:$A$100),0),\"\")","v":0},{"$f":"IFERROR(INDEX(Hoja4!$A$6:$C$100,MATCH('BASE DE DATOS'!A34&'BASE DE DATOS'!B34&'BASE DE DATOS'!C34,'BASE DE DATOS'!$A$6:$A$100),0),\"\")","v":"LIBRO 7"},{"$f":"IFERROR(INDEX(Hoja5!$A$6:$C$100,MATCH('BASE DE DATOS'!A34&'BASE DE DATOS'!B34&'BASE DE DATOS'!C34,'BASE DE DATOS'!$A$6:$A$100),0),\"\")","v":0},{"$f":"IFERROR(INDEX(Hoja6!$A$6:$C$100,MATCH('BASE DE DATOS'!A34&'BASE DE DATOS'!B34&'BASE DE DATOS'!C34,'BASE DE DATOS'!$A$6:$A$100),0),\"\")","v":0}]
[null,null,null,{"$f":"IFERROR(INDEX(Hoja1!$A$6:$C$100,MATCH('BASE DE DATOS'!A35&'BASE DE DATOS'!B35&'BASE DE DATOS'!C35,'BASE DE DATOS'!$A$6:$A$100),0),\"\")","v":"LIBRO 7"},{"$f":"IFERROR(INDEX(Hoja2!$A$6:$C$100,MATCH('BASE DE DATOS'!A35&'BASE DE DATOS'!B35&'BASE DE DATOS'!C35,'BASE DE DATOS'!$A$6:$A$100),0),\"\")","v":"LIBRO 7"},{"$f":"IFERROR(INDEX(Hoja3!$A$6:$C$100,MATCH('BASE DE DATOS'!A35&'BASE DE DATOS'!B35&'BASE DE DATOS'!C35,'BASE DE DATOS'!$A$6:$A$100),0),\"\")","v":0},{"$f":"IFERROR(INDEX(Hoja4!$A$6:$C$100,MATCH('BASE DE DATOS'!A35&'BASE DE DATOS'!B35&'BASE DE DATOS'!C35,'BASE DE DATOS'!$A$6:$A$100),0),\"\")","v":"LIBRO 7"},{"$f":"IFERROR(INDEX(Hoja5!$A$6:$C$100,MATCH('BASE DE DATOS'!A35&'BASE DE DATOS'!B35&'BASE DE DATOS'!C35,'BASE DE DATOS'!$A$6:$A$100),0),\"\")","v":0},{"$f":"IFERROR(INDEX(Hoja6!$A$6:$C$100,MATCH('BASE DE DATOS'!A35&'BASE DE DATOS'!B35&'BASE DE DATOS'!C35,'BASE DE DATOS'!$A$6:$A$100),0),\"\")","v":0}]
[null,null,null,{"$f":"IFERROR(INDEX(Hoja1!$A$6:$C$100,MATCH('BASE DE DATOS'!A36&'BASE DE DATOS'!B36&'BASE DE DATOS'!C36,'BASE DE DATOS'!$A$6:$A$100),0),\"\")","v":"LIBRO 7"},{"$f":"IFERROR(INDEX(Hoja2!$A$6:$C$100,MATCH('BASE DE DATOS'!A36&'BASE DE DATOS'!B36&'BASE DE DATOS'!C36,'BASE DE DATOS'!$A$6:$A$100),0),\"\")","v":"LIBRO 7"},{"$f":"IFERROR(INDEX(Hoja3!$A$6:$C$100,MATCH('BASE DE DATOS'!A36&'BASE DE DATOS'!B36&'BASE DE DATOS'!C36,'BASE DE DATOS'!$A$6:$A$100),0),\"\")","v":0},{"$f":"IFERROR(INDEX(Hoja4!$A$6:$C$100,MATCH('BASE DE DATOS'!A36&'BASE DE DATOS'!B36&'BASE DE DATOS'!C36,'BASE DE DATOS'!$A$6:$A$100),0),\"\")","v":"LIBRO 7"},{"$f":"IFERROR(INDEX(Hoja5!$A$6:$C$100,MATCH('BASE DE DATOS'!A36&'BASE DE DATOS'!B36&'BASE DE DATOS'!C36,'BASE DE DATOS'!$A$6:$A$100),0),\"\")","v":0},{"$f":"IFERROR(INDEX(Hoja6!$A$6:$C$100,MATCH('BASE DE DATOS'!A36&'BASE DE DATOS'!B36&'BASE DE DATOS'!C36,'BASE DE DATOS'!$A$6:$A$100),0),\"\")","v":0}]
[null,null,null,{"$f":"IFERROR(INDEX(Hoja1!$A$6:$C$100,MATCH('BASE DE DATOS'!A37&'BASE DE DATOS'!B37&'BASE DE DATOS'!C37,'BASE DE DATOS'!$A$6:$A$100),0),\"\")","v":"LIBRO 7"},{"$f":"IFERROR(INDEX(Hoja2!$A$6:$C$100,MATCH('BASE DE DATOS'!A37&'BASE DE DATOS'!B37&'BASE DE DATOS'!C37,'BASE DE DATOS'!$A$6:$A$100),0),\"\")","v":"LIBRO 7"},{"$f":"IFERROR(INDEX(Hoja3!$A$6:$C$100,MATCH('BASE DE DATOS'!A37&'BASE DE DATOS'!B37&'BASE DE DATOS'!C37,'BASE DE DATOS'!$A$6:$A$100),0),\"\")","v":0},{"$f":"IFERROR(INDEX(Hoja4!$A$6:$C$100,MATCH('BASE DE DATOS'!A37&'BASE DE DATOS'!B37&'BASE DE DATOS'!C37,'BASE DE DATOS'!$A$6:$A$100),0),\"\")","v":"LIBRO 7"},{"$f":"IFERROR(INDEX(Hoja5!$A$6:$C$100,MATCH('BASE DE DATOS'!A37&'BASE DE DATOS'!B37&'BASE DE DATOS'!C37,'BASE DE DATOS'!$A$6:$A$100),0),\"\")","v":0},{"$f":"IFERROR(INDEX(Hoja6!$A$6:$C$100,MATCH('BASE DE DATOS'!A37&'BASE DE DATOS'!B37&'BASE DE DATOS'!C37,'BASE DE DATOS'!$A$6:$A$100),0),\"\")","v":0}]
[null,null,null,{"$f":"IFERROR(INDEX(Hoja1!$A$6:$C$100,MATCH('BASE DE DATOS'!A38&'BASE DE DATOS'!B38&'BASE DE DATOS'!C38,'BASE DE DATOS'!$A$6:$A$100),0),\"\")","v":"LIBRO 7"},{"$f":"IFERROR(INDEX(Hoja2!$A$6:$C$100,MATCH('BASE DE DATOS'!A38&'BASE DE DATOS'!B38&'BASE DE DATOS'!C38,'BASE DE DATOS'!$A$6:$A$100),0),\"\")","v":"LIBRO 7"},{"$f":"IFERROR(INDEX(Hoja3!$A$6:$C$100,MATCH('BASE DE DATOS'!A38&'BASE DE DATOS'!B38&'BASE DE DATOS'!C38,'BASE DE DATOS'!$A$6:$A$100),0),\"\")","v":0},{"$f":"IFERROR(INDEX(Hoja4!$A$6:$C$100,MATCH('BASE DE DATOS'!A38&'BASE DE DATOS'!B38&'BASE DE DATOS'!C38,'BASE DE DATOS'!$A$6:$A$100),0),\"\")","v":"LIBRO 7"},{"$f":"IFERROR(INDEX(Hoja5!$A$6:$C$100,MATCH('BASE DE DATOS'!A38&'BASE DE DATOS'!B38&'BASE DE DATOS'!C38,'BASE DE DATOS'!$A$6:$A$100),0),\"\")","v":0},{"$f":"IFERROR(INDEX(Hoja6!$A$6:$C$100,MATCH('BASE DE DATOS'!A38&'BASE DE DATOS'!B38&'BASE DE DATOS'!C38,'BASE DE DATOS'!$A$6:$A$100),0),\"\")","v":0}]
[null,null,null,{"$f":"IFERROR(INDEX(Hoja1!$A$6:$C$100,MATCH('BASE DE DATOS'!A39&'BASE DE DATOS'!B39&'BASE DE DATOS'!C39,'BASE DE DATOS'!$A$6:$A$100),0),\"\")","v":"LIBRO 7"},{"$f":"IFERROR(INDEX(Hoja2!$A$6:$C$100,MATCH('BASE DE DATOS'!A39&'BASE DE DATOS'!B39&'BASE DE DATOS'!C39,'BASE DE DATOS'!$A$6:$A$100),0),\"\")","v":"LIBRO 7"},{"$f":"IFERROR(INDEX(Hoja3!$A$6:$C$100,MATCH('BASE DE DATOS'!A39&'BASE DE DATOS'!B39&'BASE DE DATOS'!C39,'BASE DE DATOS'!$A$6:$A$100),0),\"\")","v":0},{"$f":"IFERROR(INDEX(Hoja4!$A$6:$C$100,MATCH('BASE DE DATOS'!A39&'BASE DE DATOS'!B39&'BASE DE DATOS'!C39,'BASE DE DATOS'!$A$6:$A$100),0),\"\")","v":"LIBRO 7"},{"$f":"IFERROR(INDEX(Hoja5!$A$6:$C$100,MATCH('BASE DE DATOS'!A39&'BASE DE DATOS'!B39&'BASE DE DATOS'!C39,'BASE DE DATOS'!$A$6:$A$100),0),\"\")","v":0},{"$f":"IFERROR(INDEX(Hoja6!$A$6:$C$100,MATCH('BASE DE DATOS'!A39&'BASE DE DATOS'!B39&'BASE DE DATOS'!C39,'BASE DE DATOS'!$A$6:$A$100),0),\"\")","v":0}]
[null,null,null,{"$f":"IFERROR(INDEX(Hoja1!$A$6:$C$100,MATCH('BASE DE DATOS'!A40&'BASE DE DATOS'!B40&'BASE DE DATOS'!C40,'BASE DE DATOS'!$A$6:$A$100),0),\"\")","v":"LIBRO 8"},{"$f":"IFERROR(INDEX(Hoja2!$A$6:$C$100,MATCH('BASE DE DATOS'!A40&'BASE DE DATOS'!B40&'BASE DE DATOS'!C40,'BASE DE DATOS'!$A$6:$A$100),0),\"\")","v":"LIBRO 8"},{"$f":"IFERROR(INDEX(Hoja3!$A$6:$C$100,MATCH('BASE DE DATOS'!A40&'BASE DE DATOS'!B40&'BASE DE DATOS'!C40,'BASE DE DATOS'!$A$6:$A$100),0),\"\")","v":0},{"$f":"IFERROR(INDEX(Hoja4!$A$6:$C$100,MATCH('BASE DE DATOS'!A40&'BASE DE DATOS'!B40&'BASE DE DATOS'!C40,'BASE DE DATOS'!$A$6:$A$100),0),\"\")","v":0},{"$f":"IFERROR(INDEX(Hoja5!$A$6:$C$100,MATCH('BASE DE DATOS'!A40&'BASE DE DATOS'!B40&'BASE DE DATOS'!C40,'BASE DE DATOS'!$A$6:$A$100),0),\"\")","v":0},{"$f":"IFERROR(INDEX(Hoja6!$A$6:$C$100,MATCH('BASE DE DATOS'!A40&'BASE DE DATOS'!B40&'BASE DE DATOS'!C40,'BASE DE DATOS'!$A$6:$A$100),0),\"\")","v":0}]
[null,null,null,{"$f":"IFERROR(INDEX(Hoja1!$A$6:$C$100,MATCH('BASE DE DATOS'!A41&'BASE DE DATOS'!B41&'BASE DE DATOS'!C41,'BASE DE DATOS'!$A$6:$A$100),0),\"\")","v":"LIBRO 8"},{"$f":"IFERROR(INDEX(Hoja2!$A$6:$C$100,MATCH('BASE DE DATOS'!A41&'BASE DE DATOS'!B41&'BASE DE DATOS'!C41,'BASE DE DATOS'!$A$6:$A$100),0),\"\")","v":"LIBRO 8"},{"$f":"IFERROR(INDEX(Hoja3!$A$6:$C$100,MATCH('BASE DE DATOS'!A41&'BASE DE DATOS'!B41&'BASE DE DATOS'!C41,'BASE DE DATOS'!$A$6:$A$100),0),\"\")","v":0},{"$f":"IFERROR(INDEX(Hoja4!$A$6:$C$100,MATCH('BASE DE DATOS'!A41&'BASE DE DATOS'!B41&'BASE DE DATOS'!C41,'BASE DE DATOS'!$A$6:$A$100),0),\"\")","v":0},{"$f":"IFERROR(INDEX(Hoja5!$A$6:$C$100,MATCH('BASE DE DATOS'!A41&'BASE DE DATOS'!B41&'BASE DE DATOS'!C41,'BASE DE DATOS'!$A$6:$A$100),0),\"\")","v":0},{"$f":"IFERROR(INDEX(Hoja6!$A$6:$C$100,MATCH('BASE DE DATOS'!A41&'BASE DE DATOS'!B41&'BASE DE DATOS'!C41,'BASE DE DATOS'!$A$6:$A$100),0),\"\")","v":0}]
[null,null,null,{"$f":"IFERROR(INDEX(Hoja1!$A$6:$C$100,MATCH('BASE DE DATOS'!A42&'BASE DE DATOS'!B42&'BASE DE DATOS'!C42,'BASE DE DATOS'!$A$6:$A$100),0),\"\")","v":"LIBRO 8"},{"$f":"IFERROR(INDEX(Hoja2!$A$6:$C$100,MATCH('BASE DE DATOS'!A42&'BASE DE DATOS'!B42&'BASE DE DATOS'!C42,'BASE DE DATOS'!$A$6:$A$100),0),\"\")","v":"LIBRO 8"},{"$f":"IFERROR(INDEX(Hoja3!$A$6:$C$100,MATCH('BASE DE DATOS'!A42&'BASE DE DATOS'!B42&'BASE DE DATOS'!C42,'BASE DE DATOS'!$A$6:$A$100),0),\"\")","v":0},{"$f":"IFERROR(INDEX(Hoja4!$A$6:$C$100,MATCH('BASE DE DATOS'!A42&'BASE DE DATOS'!B42&'BASE DE DATOS'!C42,'BASE DE DATOS'!$A$6:$A$100),0),\"\")","v":0},{"$f":"IFERROR(INDEX(Hoja5!$A$6:$C$100,MATCH('BASE DE DATOS'!A42&'BASE DE DATOS'!B42&'BASE DE DATOS'!C42,'BASE DE DATOS'!$A$6:$A$100),0),\"\")","v":0},{"$f":"IFERROR(INDEX(Hoja6!$A$6:$C$100,MATCH('BASE DE DATOS'!A42&'BASE DE DATOS'!B42&'BASE DE DATOS'!C42,'BASE DE DATOS'!$A$6:$A$100),0),\"\")","v":0}]
[null,null,null,{"$f":"IFERROR(INDEX(Hoja1!$A$6:$C$100,MATCH('BASE DE DATOS'!A43&'BASE DE DATOS'!B43&'BASE DE DATOS'!C43,'BASE DE DATOS'!$A$6:$A$100),0),\"\")","v":"LIBRO 8"},{"$f":"IFERROR(INDEX(Hoja2!$A$6:$C$100,MATCH('BASE DE DATOS'!A43&'BASE DE DATOS'!B43&'BASE DE DATOS'!C43,'BASE DE DATOS'!$A$6:$A$100),0),\"\")","v":"LIBRO 8"},{"$f":"IFERROR(INDEX(Hoja3!$A$6:$C$100,MATCH('BASE DE DATOS'!A43&'BASE DE DATOS'!B43&'BASE DE DATOS'!C43,'BASE DE DATOS'!$A$6:$A$100),0),\"\")","v":0},{"$f":"IFERROR(INDEX(Hoja4!$A$6:$C$100,MATCH('BASE DE DATOS'!A43&'BASE DE DATOS'!B43&'BASE DE DATOS'!C43,'BASE DE DATOS'!$A$6:$A$100),0),\"\")","v":0},{"$f":"IFERROR(INDEX(Hoja5!$A$6:$C$100,MATCH('BASE DE DATOS'!A43&'BASE DE DATOS'!B43&'BASE DE DATOS'!C43,'BASE DE DATOS'!$A$6:$A$100),0),\"\")","v":0},{"$f":"IFERROR(INDEX(Hoja6!$A$6:$C$100,MATCH('BASE DE DATOS'!A43&'BASE DE DATOS'!B43&'BASE DE DATOS'!C43,'BASE DE DATOS'!$A$6:$A$100),0),\"\")","v":0}]
[null,null,null,{"$f":"IFERROR(INDEX(Hoja1!$A$6:$C$100,MATCH('BASE DE DATOS'!A44&'BASE DE DATOS'!B44&'BASE DE DATOS'!C44,'BASE DE DATOS'!$A$6:$A$100),0),\"\")","v":"LIBRO 8"},{"$f":"IFERROR(INDEX(Hoja2!$A$6:$C$100,MATCH('BASE DE DATOS'!A44&'BASE DE DATOS'!B44&'BASE DE DATOS'!C44,'BASE DE DATOS'!$A$6:$A$100),0),\"\")","v":"LIBRO 8"},{"$f":"IFERROR(INDEX(Hoja3!$A$6:$C$100,MATCH('BASE DE DATOS'!A44&'BASE DE DATOS'!B44&'BASE DE DATOS'!C44,'BASE DE DATOS'!$A$6:$A$100),0),\"\")","v":0},{"$f":"IFERROR(INDEX(Hoja4!$A$6:$C$100,MATCH('BASE DE DATOS'!A44&'BASE DE DATOS'!B44&'BASE DE DATOS'!C44,'BASE DE DATOS'!$A$6:$A$100),0),\"\")","v":0},{"$f":"IFERROR(INDEX(Hoja5!$A$6:$C$100,MATCH('BASE DE DATOS'!A44&'BASE DE DATOS'!B44&'BASE DE DATOS'!C44,'BASE DE DATOS'!$A$6:$A$100),0),\"\")","v":0},{"$f":"IFERROR(INDEX(Hoja6!$A$6:$C$100,MATCH('BASE DE DATOS'!A44&'BASE DE DATOS'!B44&'BASE DE DATOS'!C44,'BASE DE DATOS'!$A$6:$A$100),0),\"\")","v":0}]
[null,null,null,{"$f":"IFERROR(INDEX(Hoja1!$A$6:$C$100,MATCH('BASE DE DATOS'!A45&'BASE DE DATOS'!B45&'BASE DE DATOS'!C45,'BASE DE DATOS'!$A$6:$A$100),0),\"\")","v":""},{"$f":"IFERROR(INDEX(Hoja2!$A$6:$C$100,MATCH('BASE DE DATOS'!A45&'BASE DE DATOS'!B45&'BASE DE DATOS'!C45,'BASE DE DATOS'!$A$6:$A$100),0),\"\")","v":""},{"$f":"IFERROR(INDEX(Hoja3!$A$6:$C$100,MATCH('BASE DE DATOS'!A45&'BASE DE DATOS'!B45&'BASE DE DATOS'!C45,'BASE DE DATOS'!$A$6:$A$100),0),\"\")","v":""},{"$f":"IFERROR(INDEX(Hoja4!$A$6:$C$100,MATCH('BASE DE DATOS'!A45&'BASE DE DATOS'!B45&'BASE DE DATOS'!C45,'BASE DE DATOS'!$A$6:$A$100),0),\"\")","v":""},{"$f":"IFERROR(INDEX(Hoja5!$A$6:$C$100,MATCH('BASE DE DATOS'!A45&'BASE DE DATOS'!B45&'BASE DE DATOS'!C45,'BASE DE DATOS'!$A$6:$A$100),0),\"\")","v":""},{"$f":"IFERROR(INDEX(Hoja6!$A$6:$C$100,MATCH('BASE DE DATOS'!A45&'BASE DE DATOS'!B45&'BASE DE DATOS'!C45,'BASE DE DATOS'!$A$6:$A$100),0),\"\")","v":""}]
[null,null,null,{"$f":"IFERROR(INDEX(Hoja1!$A$6:$C$100,MATCH('BASE DE DATOS'!A46&'BASE DE DATOS'!B46&'BASE DE DATOS'!C46,'BASE DE DATOS'!$A$6:$A$100),0),\"\")","v":""},{"$f":"IFERROR(INDEX(Hoja2!$A$6:$C$100,MATCH('BASE DE DATOS'!A46&'BASE DE DATOS'!B46&'BASE DE DATOS'!C46,'BASE DE DATOS'!$A$6:$A$100),0),\"\")","v":""},{"$f":"IFERROR(INDEX(Hoja3!$A$6:$C$100,MATCH('BASE DE DATOS'!A46&'BASE DE DATOS'!B46&'BASE DE DATOS'!C46,'BASE DE DATOS'!$A$6:$A$100),0),\"\")","v":""},{"$f":"IFERROR(INDEX(Hoja4!$A$6:$C$100,MATCH('BASE DE DATOS'!A46&'BASE DE DATOS'!B46&'BASE DE DATOS'!C46,'BASE DE DATOS'!$A$6:$A$100),0),\"\")","v":""},{"$f":"IFERROR(INDEX(Hoja5!$A$6:$C$100,MATCH('BASE DE DATOS'!A46&'BASE DE DATOS'!B46&'BASE DE DATOS'!C46,'BASE DE DATOS'!$A$6:$A$100),0),\"\")","v":""},{"$f":"IFERROR(INDEX(Hoja6!$A$6:$C$100,MATCH('BASE DE DATOS'!A46&'BASE DE DATOS'!B46&'BASE DE DATOS'!C46,'BASE DE DATOS'!$A$6:$A$100),0),\"\")","v":""}]
[null,null,null,{"$f":"IFERROR(INDEX(Hoja1!$A$6:$C$100,MATCH('BASE DE DATOS'!A47&'BASE DE DATOS'!B47&'BASE DE DATOS'!C47,'BASE DE DATOS'!$A$6:$A$100),0),\"\")","v":""},{"$f":"IFERROR(INDEX(Hoja2!$A$6:$C$100,MATCH('BASE DE DATOS'!A47&'BASE DE DATOS'!B47&'BASE DE DATOS'!C47,'BASE DE DATOS'!$A$6:$A$100),0),\"\")","v":""},{"$f":"IFERROR(INDEX(Hoja3!$A$6:$C$100,MATCH('BASE DE DATOS'!A47&'BASE DE DATOS'!B47&'BASE DE DATOS'!C47,'BASE DE DATOS'!$A$6:$A$100),0),\"\")","v":""},{"$f":"IFERROR(INDEX(Hoja4!$A$6:$C$100,MATCH('BASE DE DATOS'!A47&'BASE DE DATOS'!B47&'BASE DE DATOS'!C47,'BASE DE DATOS'!$A$6:$A$100),0),\"\")","v":""},{"$f":"IFERROR(INDEX(Hoja5!$A$6:$C$100,MATCH('BASE DE DATOS'!A47&'BASE DE DATOS'!B47&'BASE DE DATOS'!C47,'BASE DE DATOS'!$A$6:$A$100),0),\"\")","v":""},{"$f":"IFERROR(INDEX(Hoja6!$A$6:$C$100,MATCH('BASE DE DATOS'!A47&'BASE DE DATOS'!B47&'BASE DE DATOS'!C47,'BASE DE DATOS'!$A$6:$A$100),0),\"\")","v":""}]
[null,null,null,{"$f":"IFERROR(INDEX(Hoja1!$A$6:$C$100,MATCH('BASE DE DATOS'!A48&'BASE DE DATOS'!B48&'BASE DE DATOS'!C48,'BASE DE DATOS'!$A$6:$A$100),0),\"\")","v":""},{"$f":"IFERROR(INDEX(Hoja2!$A$6:$C$100,MATCH('BASE DE DATOS'!A48&'BASE DE DATOS'!B48&'BASE DE DATOS'!C48,'BASE DE DATOS'!$A$6:$A$100),0),\"\")","v":""},{"$f":"IFERROR(INDEX(Hoja3!$A$6:$C$100,MATCH('BASE DE DATOS'!A48&'BASE DE DATOS'!B48&'BASE DE DATOS'!C48,'BASE DE DATOS'!$A$6:$A$100),0),\"\")","v":""},{"$f":"IFERROR(INDEX(Hoja4!$A$6:$C$100,MATCH('BASE DE DATOS'!A48&'BASE DE DATOS'!B48&'BASE DE DATOS'!C48,'BASE DE DATOS'!$A$6:$A$100),0),\"\")","v":""},{"$f":"IFERROR(INDEX(Hoja5!$A$6:$C$100,MATCH('BASE DE DATOS'!A48&'BASE DE DATOS'!B48&'BASE DE DATOS'!C48,'BASE DE DATOS'!$A$6:$A$100),0),\"\")","v":""},{"$f":"IFERROR(INDEX(Hoja6!$A$6:$C$100,MATCH('BASE DE DATOS'!A48&'BASE DE DATOS'!B48&'BASE DE DATOS'!C48,'BASE DE DATOS'!$A$6:$A$100),0),\"\")","v":""}]
[null,null,null,{"$f":"IFERROR(INDEX(Hoja1!$A$6:$C$100,MATCH('BASE DE DATOS'!A49&'BASE DE DATOS'!B49&'BASE DE DATOS'!C49,'BASE DE DATOS'!$A$6:$A$100),0),\"\")","v":""},{"$f":"IFERROR(INDEX(Hoja2!$A$6:$C$100,MATCH('BASE DE DATOS'!A49&'BASE DE DATOS'!B49&'BASE DE DATOS'!C49,'BASE DE DATOS'!$A$6:$A$100),0),\"\")","v":""},{"$f":"IFERROR(INDEX(Hoja3!$A$6:$C$100,MATCH('BASE DE DATOS'!A49&'BASE DE DATOS'!B49&'BASE DE DATOS'!C49,'BASE DE DATOS'!$A$6:$A$100),0),\"\")","v":""},{"$f":"IFERROR(INDEX(Hoja4!$A$6:$C$100,MATCH('BASE DE DATOS'!A49&'BASE DE DATOS'!B49&'BASE DE DATOS'!C49,'BASE DE DATOS'!$A$6:$A$100),0),\"\")","v":""},{"$f":"IFERROR(INDEX(Hoja5!$A$6:$C$100,MATCH('BASE DE DATOS'!A49&'BASE DE DATOS'!B49&'BASE DE DATOS'!C49,'BASE DE DATOS'!$A$6:$A$100),0),\"\")","v":""},{"$f":"IFERROR(INDEX(Hoja6!$A$6:$C$100,MATCH('BASE DE DATOS'!A49&'BASE DE DATOS'!B49&'BASE DE DATOS'!C49,'BASE DE DATOS'!$A$6:$A$100),0),\"\")","v":""}]
[null,null,null,{"$f":"IFERROR(INDEX(Hoja1!$A$6:$C$100,MATCH('BASE DE DATOS'!A50&'BASE DE DATOS'!B50&'BASE DE DATOS'!C50,'BASE DE DATOS'!$A$6:$A$100),0),\"\")","v":""},{"$f":"IFERROR(INDEX(Hoja2!$A$6:$C$100,MATCH('BASE DE DATOS'!A50&'BASE DE DATOS'!B50&'BASE DE DATOS'!C50,'BASE DE DATOS'!$A$6:$A$100),0),\"\")","v":""},{"$f":"IFERROR(INDEX(Hoja3!$A$6:$C$100,MATCH('BASE DE DATOS'!A50&'BASE DE DATOS'!B50&'BASE DE DATOS'!C50,'BASE DE DATOS'!$A$6:$A$100),0),\"\")","v":""},{"$f":"IFERROR(INDEX(Hoja4!$A$6:$C$100,MATCH('BASE DE DATOS'!A50&'BASE DE DATOS'!B50&'BASE DE DATOS'!C50,'BASE DE DATOS'!$A$6:$A$100),0),\"\")","v":""},{"$f":"IFERROR(INDEX(Hoja5!$A$6:$C$100,MATCH('BASE DE DATOS'!A50&'BASE DE DATOS'!B50&'BASE DE DATOS'!C50,'BASE DE DATOS'!$A$6:$A$100),0),\"\")","v":""},{"$f":"IFERROR(INDEX(Hoja6!$A$6:$C$100,MATCH('BASE DE DATOS'!A50&'BASE DE DATOS'!B50&'BASE DE DATOS'!C50,'BASE DE DATOS'!$A$6:$A$100),0),\"\")","v":""}]
[null,null,null,{"$f":"IFERROR(INDEX(Hoja1!$A$6:$C$100,MATCH('BASE DE DATOS'!A51&'BASE DE DATOS'!B51&'BASE DE DATOS'!C51,'BASE DE DATOS'!$A$6:$A$100),0),\"\")","v":""},{"$f":"IFERROR(INDEX(Hoja2!$A$6:$C$100,MATCH('BASE DE DATOS'!A51&'BASE DE DATOS'!B51&'BASE DE DATOS'!C51,'BASE DE DATOS'!$A$6:$A$100),0),\"\")","v":""},{"$f":"IFERROR(INDEX(Hoja3!$A$6:$C$100,MATCH('BASE DE DATOS'!A51&'BASE DE DATOS'!B51&'BASE DE DATOS'!C51,'BASE DE DATOS'!$A$6:$A$100),0),\"\")","v":""},{"$f":"IFERROR(INDEX(Hoja4!$A$6:$C$100,MATCH('BASE DE DATOS'!A51&'BASE DE DATOS'!B51&'BASE DE DATOS'!C51,'BASE DE DATOS'!$A$6:$A$100),0),\"\")","v":""},{"$f":"IFERROR(INDEX(Hoja5!$A$6:$C$100,MATCH('BASE DE DATOS'!A51&'BASE DE DATOS'!B51&'BASE DE DATOS'!C51,'BASE DE DATOS'!$A$6:$A$100),0),\"\")","v":""},{"$f":"IFERROR(INDEX(Hoja6!$A$6:$C$100,MATCH('BASE DE DATOS'!A51&'BASE DE DATOS'!B51&'BASE DE DATOS'!C51,'BASE DE DATOS'!$A$6:$A$100),0),\"\")","v":""}]
[null,null,null,{"$f":"IFERROR(INDEX(Hoja1!$A$6:$C$100,MATCH('BASE DE DATOS'!A52&'BASE DE DATOS'!B52&'BASE DE DATOS'!C52,'BASE DE DATOS'!$A$6:$A$100),0),\"\")","v":""},{"$f":"IFERROR(INDEX(Hoja2!$A$6:$C$100,MATCH('BASE DE DATOS'!A52&'BASE DE DATOS'!B52&'BASE DE DATOS'!C52,'BASE DE DATOS'!$A$6:$A$100),0),\"\")","v":""},{"$f":"IFERROR(INDEX(Hoja3!$A$6:$C$100,MATCH('BASE DE DATOS'!A52&'BASE DE DATOS'!B52&'BASE DE DATOS'!C52,'BASE DE DATOS'!$A$6:$A$100),0),\"\")","v":""},{"$f":"IFERROR(INDEX(Hoja4!$A$6:$C$100,MATCH('BASE DE DATOS'!A52&'BASE DE DATOS'!B52&'BASE DE DATOS'!C52,'BASE DE DATOS'!$A$6:$A$100),0),\"\")","v":""},{"$f":"IFERROR(INDEX(Hoja5!$A$6:$C$100,MATCH('BASE DE DATOS'!A52&'BASE DE DATOS'!B52&'BASE DE DATOS'!C52,'BASE DE DATOS'!$A$6:$A$100),0),\"\")","v":""},{"$f":"IFERROR(INDEX(Hoja6!$A$6:$C$100,MATCH('BASE DE DATOS'!A52&'BASE DE DATOS'!B52&'BASE DE DATOS'!C52,'BASE DE DATOS'!$A$6:$A$100),0),\"\")","v":""}]
[null,null,null,{"$f":"IFERROR(INDEX(Hoja1!$A$6:$C$100,MATCH('BASE DE DATOS'!A53&'BASE DE DATOS'!B53&'BASE DE DATOS'!C53,'BASE DE DATOS'!$A$6:$A$100),0),\"\")","v":""},{"$f":"IFERROR(INDEX(Hoja2!$A$6:$C$100,MATCH('BASE DE DATOS'!A53&'BASE DE DATOS'!B53&'BASE DE DATOS'!C53,'BASE DE DATOS'!$A$6:$A$100),0),\"\")","v":""},{"$f":"IFERROR(INDEX(Hoja3!$A$6:$C$100,MATCH('BASE DE DATOS'!A53&'BASE DE DATOS'!B53&'BASE DE DATOS'!C53,'BASE DE DATOS'!$A$6:$A$100),0),\"\")","v":""},{"$f":"IFERROR(INDEX(Hoja4!$A$6:$C$100,MATCH('BASE DE DATOS'!A53&'BASE DE DATOS'!B53&'BASE DE DATOS'!C53,'BASE DE DATOS'!$A$6:$A$100),0),\"\")","v":""},{"$f":"IFERROR(INDEX(Hoja5!$A$6:$C$100,MATCH('BASE DE DATOS'!A53&'BASE DE DATOS'!B53&'BASE DE DATOS'!C53,'BASE DE DATOS'!$A$6:$A$100),0),\"\")","v":""},{"$f":"IFERROR(INDEX(Hoja6!$A$6:$C$100,MATCH('BASE DE DATOS'!A53&'BASE DE DATOS'!B53&'BASE DE DATOS'!C53,'BASE DE DATOS'!$A$6:$A$100),0),\"\")","v":""}]

{"sheet":"BASE DE DATOS","index":7,"n_rows":44,"n_cols":3,"rows_kept":44,"cut":false,"hidden":false,"merged":[]}
[]
[]
["LBRO","HOJA","Nº"]
["LBRO","HOJA","Nº"]
[]
["LIBRO 1","HOJA 1",2]
["LIBRO 2","HOJA 1",3]
["LIBRO 3","HOJA 2",3]
["LIBRO 3","HOJA 3",3]
["LIBRO 4","HOJA 4",3]
["LIBRO 4","HOJA 5",3]
["LIBRO 4","HOJA 6",3]
["LIBRO 4","HOJA 7",3]
["LIBRO 4","HOJA 8",3]
["LIBRO 4","HOJA 9",3]
["LIBRO 4","HOJA 10",3]
["LIBRO 4","HOJA 11",3]
["LIBRO 5","HOJA 5",7]
["LIBRO 5","HOJA 6",7]
["LIBRO 5","HOJA 7",8]
["LIBRO 5","HOJA 8",7]
["LIBRO 5","HOJA 9",8]
["LIBRO 6","HOJA 1",2]
["LIBRO 6","HOJA 2",3]
["LIBRO 6","HOJA 3",2]
["LIBRO 6","HOJA 4",3]
["LIBRO 7","HOJA 1",5]
["LIBRO 7","HOJA 2",5]
["LIBRO 7","HOJA 3",5]
["LIBRO 7","HOJA 4",5]
["LIBRO 7","HOJA 5",5]
["LIBRO 7","HOJA 6",5]
["LIBRO 7","HOJA 7",5]
["LIBRO 7","HOJA 8",5]
["LIBRO 7","HOJA 9",5]
["LIBRO 7","HOJA 10",5]
["LIBRO 7","HOJA 11",5]
["LIBRO 7","HOJA 12",5]
["LIBRO 7","HOJA 13",5]
["LIBRO 8","HOJA 1",5]
["LIBRO 8","HOJA 2",5]
["LIBRO 8","HOJA 3",5]
["LIBRO 8","HOJA 4",5]
["LIBRO 8","HOJA 5",5]